Workbook

Sheet Algemene informatie
B2: Rekenmodel Grondstof uit Afval: gemeentelijk hergebruik van huishoudelijke verpakkingsmaterialen Doel van het rekenmodel Het model geeft inzicht in de hoeveelheden secundaire grondstoffen (metaalschroot, glasscherven, papiervezels en plastic maalgoed) er uit de huishoudelijke verpakkingsmaterialen worden gemaakt die uit deze gemeente afkomstig zijn. Dit betreft dus zowel de gescheiden ingezamelde verpakkingsmaterialen als de verpakkingsmaterialen die namens de gemeenten zijn nagescheiden. De resultaten laten zien hoe goed de gemeente voor de vijf huishoudelijke verpakkingsmaterialen presteert ten opzichte van het nationale gemiddelde voor 2017 en dus waar verbeteringen mogelijk zijn. Dit rekenmodel is bedoeld voor de gemeenteambtenaren, medewerkers van inzamel-, afval- en recyclingbedrijven. Hoe werkt het model? De uitkomsten van elk model zijn uiteraard afhankelijk van de kwaliteit van de invoer. Dit model werkt met enkele verplichte invoervelden en enkele optionele invoervelden. Hoe meer er ingevuld kan worden, hoe betrouwbaarder de resultaten worden. Verplichte invoervelden zijn de naam van de gemeente en het aantal inwoners, de hoeveelheden ingezameld huishoudelijk restafval, alle hoeveelheden gescheiden ingezameld huishoudelijke verpakkingen en of er kunststoffen en drankenkartons worden nagescheiden. Optionele invoervelden zijn de samenstelling van het huishoudelijke restafval en de samenstelling van de gescheiden ingezamelde verpakkingen. Wanneer invoervelden zijn ingevuld berekend het model zelf de resultaten en zet deze in perspectief van het nationaal gemiddelde. Deze resultaten zijn te vinden in de afzonderlijke tabbladen. Wat berekent het model? 1. Netto-keten-recycling-rendementen Het model berekent de netto recyclingketenrendementen voor de vijf verschillende huishoudelijke verpakkingsmaterialen van de gemeente (papier en karton, plastic, glas, metaal en drankenkartons). Dit is een zuivere maat voor het niveau van circulariteit van de gemeente ten aanzien van het hergebruik van huishoudelijke verpakkingen. Omdat deze berekening ook op nationaal niveau is uitgevoerd, wordt gelijk duidelijk hoe de gemeente presteert ten opzichte van het nationale gemiddelde van 2017. Hieruit valt dus op te maken voor welke verpakkingsmaterialen de gemeente bovengemiddeld goed en minder dan gemiddeld goed presteert. Bovendien wordt uitgerekend welke verbeterruimte er nog bestaat. Dit geeft richting aan de gemeente voor het gericht verbeteren van inzameling of nascheiding van huishoudelijke verpakkingsmaterialen. 2. Indicatieve lijst van gemaakte producten Het model berekent ook hoeveel secundaire grondstoffen er worden geproduceerd uit de verpakkingen die in de gemeenten zijn ingezameld of namens de gemeenten uit het huisvuil zijn nagescheiden. Dit wordt vertaald in een indicatieve lijst van producten die mogelijk geproduceerd zijn namens de gemeente. Deze lijst is bewust indicatief, omdat naast enkele hergebruiksketens (glas, metaal) met stabiele handelsrelaties er ook ketens zijn met meer dynamische handelsrelaties (plastics). Netto en brutogewichten Het brutogewicht is de som van het nettogewicht aan gewenste materialen, eventueel aanwezige andere materialen en het aanhangend vocht- en vuil. Omdat het bij de recycling van verpakkingsmaterialen ook van belang kan zijn hoeveel niet-verpakkingen er aanwezig zijn, wordt er ook over het netto-verpakkingsgewicht gesproken. Dit betekent dat van het brutogewicht zowel de niet-verpakkingen als de andere materialen als het aanhangend vocht en vuil zijn afgetrokken.
B5: Model ontwikkeld door: | C5: Dit model is onderdeel van het project "Sustainable Packaging":

Sheet Invullen
B2: Invulblad rekenmodel gemeentelijk hergebruik van huishoudelijke verpakkingsmaterialen
B4: Algemeen | G4: Legenda
G5: Verplicht invulveld
B6: Naam gemeente | G6: Optioneel invulveld
B7: Aantal inwoners | D7: [#]
B8: Aantal aansluitingen | D8: [#]
B11: Ingezamelde hoeveelheden restafval en gescheiden ingezamelde verpakkingen*
B12: * Let op: hier kunt u de hoeveelheden ingezameld restafval en gescheiden ingezamelde verpakkingen invullen. Wanneer uw gemeente bepaalde inzamelsystemen hanteert kunt u dat hier invullen. De andere velden kunt u leeg laten. [Voorbeeld: Een gemeente zamelt PMD alleen gezamelijk in, in dat geval laat u de velden voor Drankenkartons, Kunststof-verpakkingen, Kunststof & Drankenkartons en Metaal-verpakkingen leeg. In het geval dat u 1 van deze stromen ook apart inzamelt, dan kunt u hier de hoeveelheid invullen.]
B13: Restafval | D13: [ton/jaar]
B14: Oud-papier en karton | D14: [ton/jaar]
B15: Glas-verpakkingen (totaal) | D15: [ton/jaar]
B16: Kunststof-verpakkingen | D16: [ton/jaar]
B17: Drankenkartons | D17: [ton/jaar]
B18: Metaal-verpakkingen | D18: [ton/jaar]
B19: Plastic, metaal (blik) en drankenkartons [PMD] | D19: [ton/jaar]
B20: Plastic en drankenkartons [PD] | D20: [ton/jaar]
B23: Samenstelling huisvuil
B25: Is de samenstelling van het huishoudelijk restafval bekend? | D25: [Ja/Nee]
B27: Zo ja, vul dan de onderstaande tabel in, [0] is niks, [niet invullen] is niet bekend
B28: Samenstelling huishoudelijk restafval,[%]
C29: Totaal [%] | D29: Verpakkingen [%] | E29: Niet-Verpakkingen [%]
B30: Oud-papier en karton
B31: Kunststof
B32: Glas
B33: Metalen totaal** | G33: ** Let op: Voor metalen alleen totaal invullen, of alleen ferro en non-ferro.
B34: -Ferro metalen
B35: -Non-Ferrometalen
B36: Drankenkartons
B37: Rest
B39: Wordt het huishoudelijk restafval nagescheiden? | D39: [Ja/Nee]
B41: Zo ja, waar? | D41: Omrin, HVC, Attero-Noord, Attero-Wijster
B44: Inzameling van verpakkingsglas
B46: Hoe wordt het verpakkingsglas ingezameld?
B47: Kleurgescheiden: wit, groen en bruin apart | D47: [Ja/Nee]
B48: Kleurgescheiden: wit en bont apart | D48: [Ja/Nee]
B49: Gecombineerd: alle verpakkingsglas tezamen | D49: [Ja/Nee]
B51: Zo ja, zijn de aparte gewichten dan bekend, [0] is niks, [niet invullen] is niet bekend
B52: Wit, Groen en Bruin apart
B53: Ingezamelde gewichten glas
B54: wit | D54: [ton/jaar]
B55: groen | D55: [ton/jaar]
B56: bruin | D56: [ton/jaar]
B57: Totaal | C57: =SUM(C54:C56) -> 0
B59: Zo ja, zijn de aparte gewichten dan bekend, [0] is niks, [niet invullen] is niet bekend
B60: Wit en Bont apart
B61: Ingezamelde gewichten glas
B62: wit | D62: [ton/jaar]
B63: bont | D63: [ton/jaar]
B64: Totaal | C64: =SUM(C62:C63) -> 0
B67: PMD inzameling
B69: Is de samenstelling van het PMD materiaal bekend? | D69: [Ja/Nee]
B71: Zo ja, vul dan de onderstaande tabel in,
C72: Totaal [%] | D72: Verpakkingen [%] | E72: Niet-Verpakkingen [%]
B73: Kunststof
B74: Metaal
B75: Drankenkartons
B76: Rest
B79: PD inzameling
B81: Is de samenstelling van het PD materiaal bekend? | D81: [Ja/Nee]
B83: Zo ja, vul dan de onderstaande tabel in,
C84: Totaal [%] | D84: Verpakkingen [%] | E84: Niet-Verpakkingen [%]
B85: Kunststof
B86: Drankenkartons
B87: Rest
B90: Samenstelling gescheiden ingezamelde materialen
B92: Is de samenstelling van de gescheiden ingezamelde materialen bekend?
D93: [Ja/Nee]
B95: Extra uitleg: het gehalte andere materialen en het aandeel verpakkingen tellen niet op tot 100%. Het gehalte andere materialen is het bruto gehalte ongewenste materialen in het ingezamelde materiaal.
C96: Gehalte andere materialen [%]
B97: Oud papier en karton
B98: Glasverpakkingen
B99: Kunststofverpakkingen
B100: Drankenkartons
B101: Metaalverpakkingen
B102: PMD
B103: PD
B105: Extra uitleg: het aandeel verpakkingen is het percentage verpakkingen, gedeeld door het percentage verpakkingen en niet-verpakkingen.
C106: Aandeel verpakkingen [%]
B107: Oud papier en karton
B108: Glasverpakkingen
B109: Kunststofverpakkingen
B110: Drankenkartons
B112: Extra uitleg aanhangend vocht en vuil. Dit is het bruto-gewicht min het netto-gewicht gedeeld door het bruto-gewicht. Deze parameter staat dus los van de andere gehaltes
C113: Aanhangend vocht en vuil [%]
B114: Oud papier en karton
B115: Glasverpakkingen
B116: Kunststofverpakkingen
B117: Drankenkartons

Sheet Feed (hidden)
A1: Verwerking ingevulde gegevens tot bruikbare modelgegevens
A2: Aantal inwoners | B2: =Invullen!C7 -> 0 | C2: [#]
A3: Bevolkingsaandeel | B3: =B2/data!B8 -> 0 | C3: [-]
I5: Hulp-veld voor metaalinvulwijze | K5: NIKS | L5: ATM | M5: AFNF | N5: ALLES
A6: Hoeveelheden ingezameld afval | B6: Logische parameter | C6: Ingevuld, [ton/jaar] | D6: Verwacht op basis van nationaal gemiddelde | K6: =IF(SUM(J7:J9)=0,1,0) -> 1 | L6: =IF(AND(J7=1,J8+J9=0),1,0) -> 0 | M6: =IF(AND(J7=0,J8+J9>0),1,0) -> 0 | N6: =IF(AND(J7=1,J8+J9>0),1,0) -> 0
A7: Restafval | B7: =IF(Invullen!C13="",0,Invullen!C13) -> 0 | C7: =B7 -> 0 | D7: =IF(B7>0,data!E2*1000*Feed!B3,0) -> 0 | E7: =IF(B7>0,C7/D7,0) -> 0 | I7: Totaal metaal | J7: =IF(Invullen!C33=0,0,1) -> 0 | K7: =IF(K$6=1,I52,0) -> 0.04364646364 | L7: =IF(L$6=1,Invullen!C33,0) -> 0 | M7: =IF(M6=1,Invullen!C34+Invullen!C35,0) -> 0 | N7: =IF(N6=1,Invullen!C33,0) -> 0
A8: Huishoudelijk OPK | B8: =IF(Invullen!C14="",0,Invullen!C14) -> 0 | C8: =B8 -> 0 | D8: =IF(B8>0,data!E3*1000*Feed!B3,0) -> 0 | E8: 0 | I8: Totaal ferro | J8: =IF(Invullen!C34=0,0,1) -> 0 | K8: =IF(K$6=1,I53,0) -> 0.03273484773 | L8: =IF(L6=1,Invullen!C33*Feed!I53/Feed!I52,0) -> 0 | M8: =IF(M6=1,Invullen!C34,0) -> 0 | N8: =IF(N6=1,IF(N11=1,Invullen!C34,Invullen!C34*Invullen!C33/(Invullen!C34+Invullen!C35)),0) -> 0
A9: Huishoudelijk glas | B9: =IF(Invullen!C15="",0,Invullen!C15) -> 0 | C9: 0 | D9: =IF(B9>0,data!E4*1000*B3,0) -> 0 | E9: 0 | I9: Totaal Nonferro | J9: =IF(Invullen!C35=0,0,1) -> 0 | K9: 0.01091161591 | L9: =IF(L6=1,Invullen!C33*Feed!I54/Feed!I52,0) -> 0 | M9: =IF(M6=1,Invullen!C35,0) -> 0 | N9: =IF(N6=1,IF(N11=1,Invullen!C35,Invullen!C35*Invullen!C33/(Invullen!C34+Invullen!C35)),0) -> 0
A10: Huishoudelijk kunststof | B10: =IF(Invullen!C16="",0,Invullen!C16) -> 0 | C10: 0 | D10: =IF(B10>0,data!E5*1000*Feed!B3,0) -> 0 | E10: 0 | I10: Invulsom | K10: =IF(K6=1,SUM(Invullen!C30:C37),0) -> 0 | L10: =IF(L6=1,SUM(Invullen!C30:C33,Invullen!C36:C37),0) -> 0 | M10: =IF(M6=1,SUM(Invullen!C30:C37),0) -> 0 | N10: =IF(N6=1,SUM(Invullen!C30:C33,Invullen!C36:C37),0) -> 0
A11: Huishoudelijk drankenkartons | B11: =IF(Invullen!C17="",0,Invullen!C17) -> 0 | C11: 0 | D11: =IF(B11>0,data!E7*1000*Feed!B3,0) -> 0 | E11: 0 | I11: Controle op som metalen | N11: =IF(Invullen!C33=Invullen!C34+Invullen!C35,1,0) -> 1
A12: Huishoudelijk metaalverpakkingen | B12: =IF(Invullen!C18="",0,Invullen!C18) -> 0 | C12: 0 | D12: =IF(B12>0,data!E6*1000*Feed!B3,0) -> 0 | E12: 0
A13: PMD | B13: =IF(Invullen!C19="",0,Invullen!C19) -> 0 | C13: 0
A14: PD | B14: =IF(Invullen!C20="",0,Invullen!C20) -> 0 | C14: 0
A17: Totaal invulwaarden | B17: =SUM(K10:N10) -> 0
A18: Logische test of de kwaliteit van de invoer voldoende goed is | B18: =IF(AND(B17>0.95,B17<1.05),1,0) -> 0
A20: Samenstelling huishoudelijk restafval,[%] met ruwe waarden | I20: Verpakkingsglas inzamelwijze | M20: Wit, Groen, Bruin apart
B21: Totaal | C21: Verpakkingen | D21: Niet-Verpakkingen | E21: invulratio | F21: Log test | N21: Default | O21: [ton/jr]
A22: Oud-papier en karton | B22: =IF($B$18=1,Invullen!C30*(I47-I49)/I47,I47) -> 0.1239956354 | C22: =IF(B18=0,J47,IF(F22=0, B22*J47/I47,B22*E22*Invullen!D30/Invullen!C30)) -> 0.04463842873 | D22: =IF(B18=0,K47,IF(F22=0, B22*K47/I47,B22*E22*Invullen!E30/Invullen!C30)) -> 0.07935720663 | E22: =IF((Invullen!D30+Invullen!E30)=0,0,(Invullen!C30)/(Invullen!D30+Invullen!E30)) -> 0 | F22: =IF(AND(E22>0.95,E22<1.05),1,0) -> 0 | I22: Wit, Groen, Bruin apart | K22: =IF(Invullen!C47="Ja",B9,0) -> 0 | M22: wit | N22: 0.6 | O22: =IF(AND(K22>0,Invullen!C57<>Invullen!C15),Feed!N22*Feed!K22,Invullen!C54) -> 0
A23: Oud-papier en karton niet-recycleerbaar | B23: =IF($B$18=1,Invullen!C30*I49/I47,I49) -> 0.04463842873 | C23: =IF(B18=0,J49,IF(F22=0, B23*J49/I49,B23*E22*Invullen!D30/Invullen!C30)) -> 0.00694375558 | D23: =IF(B18=0,K49,IF(F22=0, B23*K49/I49,B23*E22*Invullen!E30/Invullen!C30)) -> 0.03769467315 | I23: Wit en Bont apart | K23: =IF(Invullen!C48="Ja",B9,0) -> 0 | M23: groen | N23: 0.3 | O23: =IF(AND(K22>0,Invullen!C57<>Invullen!C15),Feed!N23*Feed!K22,Invullen!C55) -> 0
A24: Kunststof | B24: =IF($B$18=1,Invullen!C31,I50) -> 0.1388751116 | C24: =IF(B18=0,J50,IF(F24=0, B24*J50/I50,B24*E24*Invullen!D31/Invullen!C31)) -> 0.08729292729 | D24: =IF(B18=0,K50,IF(F24=0, B24*K50/I50,B24*E24*Invullen!E31/Invullen!C31)) -> 0.05158218431 | E24: =IF((Invullen!D31+Invullen!E31)=0,0,(Invullen!C31)/(Invullen!D31+Invullen!E31)) -> 0 | F24: =IF(AND(E24>0.95,E24<1.05),1,0) -> 0 | I24: Gemengd | K24: =IF(Invullen!C49="Ja",B9,0) -> 0 | M24: bruin | N24: 0.1 | O24: =IF(AND(K22>0,Invullen!C57<>Invullen!C15),Feed!N24*Feed!K22,Invullen!C56) -> 0
A25: Glas | B25: =IF($B$18=1,Invullen!C32,I51) -> 0.05158218431 | C25: =IF(B18=0,J51,IF(F25=0, B25*J51/I51,B25*E25*Invullen!D32/Invullen!C32)) -> 0.04860628906 | D25: =IF(B18=0,K51,IF(F25=0, B25*K51/I51,B25*E25*Invullen!E32/Invullen!C32)) -> 0.002975895248 | E25: =IF((Invullen!D32+Invullen!E32)=0,0,(Invullen!C32)/(Invullen!D32+Invullen!E32)) -> 0 | F25: =IF(AND(E25>0.95,E25<1.05),1,0) -> 0
A26: Metalen totaal | B26: =IF($B$18=1,SUM(K7:N7),I52) -> 0.04364646364 | C26: =IF(B18=0,J52,IF(F26=0, B26*J52/I52,B26*E26*Invullen!D33/Invullen!C33)) -> 0.03055252455 | D26: =IF(B18=0,K52,IF(F26=0, B26*K52/I52,B26*E26*Invullen!E33/Invullen!C33)) -> 0.01309393909 | E26: =IF((Invullen!D33+Invullen!E33)=0,0,(Invullen!C33)/(Invullen!D33+Invullen!E33)) -> 0 | F26: =IF(AND(E26>0.95,E26<1.05),1,0) -> 0 | M26: Wit, Bont apart
A27: -Ferro metalen | B27: =IF($B$18=1,SUM(K8:N8),I53) -> 0.03273484773 | C27: =IF(B18=0,J53,IF(F27=0, B27*J53/I53,B27*E27*Invullen!D34/Invullen!C34)) -> 0.02281519691 | D27: =IF(B18=0,K53,IF(F27=0, B27*K53/I53,B27*E27*Invullen!E34/Invullen!C34)) -> 0.009919650828 | E27: =IF((Invullen!D34+Invullen!E34)=0,0,(Invullen!C34)/(Invullen!D34+Invullen!E34)) -> 0 | F27: 0 | N27: Default | O27: [ton/jr]
A28: -Non-Ferrometalen | B28: =IF($B$18=1,SUM(K9:N9),B54) -> 0.011 | C28: =IF(B18=0,J54,IF(F28=0, B28*J54/I54,B28*E28*Invullen!D35/Invullen!C35)) -> 0.007737327646 | D28: =IF(B18=0,K54,IF(F28=0, B28*K54/I54,B28*E28*Invullen!E35/Invullen!C35)) -> 0.003174288265 | E28: =IF((Invullen!D35+Invullen!E35)=0,0,(Invullen!C35)/(Invullen!D35+Invullen!E35)) -> 0 | F28: 0 | M28: wit | N28: 0.6 | O28: =IF(AND(K23>0,Invullen!C64<>Invullen!C15),Feed!N28*Feed!K23,Invullen!C62) -> 0
A29: Drankenkartons | B29: =IF($B$18=1,Invullen!C36,I48) -> 0.02975895248 | M29: bont | N29: 0.4 | O29: =IF(AND(K23>0,Invullen!C64<>Invullen!C15),Feed!N29*Feed!K23,Invullen!C63) -> 0
A30: Rest | B30: =IF($B$18=1,Invullen!C37,SUM(I55:I59)) -> 0.5675032239
A32: Samenstelling huishoudelijk restafval,[%] met tot 100% geïndexeerde waarden
B33: Totaal | C33: Verpakkingen | D33: Niet-Verpakkingen
A34: Oud-papier en karton recycleerbaar | B34: =IF($B$18=0,B22,B22*100%/$B$17) -> 0.1239956354 | C34: =IF($B$18=0,C22,C22*100%/$B$17) -> 0.04463842873 | D34: =IF($B$18=0,D22,D22*100%/$B$17) -> 0.07935720663
A35: Oud-papier en karton niet-recycleerbaar | B35: =IF(B18=0,B23,B23*100%/$B$17) -> 0.04463842873 | C35: =IF($B$18=0,C23,C23*100%/$B$17) -> 0.00694375558 | D35: 0.03769467315
A36: Kunststof | B36: =IF(B18=0,B24,B24*100%/$B$17) -> 0.1388751116 | C36: 0.08729292729 | D36: 0.05158218431
A37: Glas | B37: =IF(B18=0,B25,B25*100%/$B$17) -> 0.05158218431 | C37: 0.04860628906 | D37: 0.002975895248
A38: Metalen totaal | B38: =IF(B18=0,B26,B26*100%/$B$17) -> 0.04364646364 | C38: 0.03055252455 | D38: 0.01309393909
A39: -Ferro metalen | B39: =IF(B18=0,B27,B27*100%/$B$17) -> 0.03273484773 | C39: =IF($B$18=0,C27,IF(F39=1,C27*100%/$B$17,B38*(C38/B38)*(B39/B38))) -> 0.02281519691 | D39: =IF($B$18=0,D27,IF(G39=1,D27*100%/$B$17,B38*(D38/B38)*(B39/B38))) -> 0.009919650828 | F39: =IF(C26=C27+C28,1,0) -> 1 | G39: =IF(D26=D27+D28,1,0) -> 1
A40: -Non-Ferrometalen | B40: =IF(B18=0,B28,B28*100%/$B$17) -> 0.011 | C40: =IF($B$18=0,C28,IF(F39=1,C28*100%/$B$17,B38*(C38/B38)*(B40/B38))) -> 0.007737327646 | D40: =IF($B$18=0,D28,IF(G39=1,D28*100%/$B$17,B38*(D38/B38)*(B40/B38))) -> 0.003174288265
A41: Drankenkartons | B41: =IF(B18=0,B29,B29*100%/$B$17) -> 0.02975895248
A42: Rest | B42: =IF(B18=0,B30,B30*100%/$B$17) -> 0.5675032239
A45: Samenstelling huishoudelijk restafval,[%] DEFAULTWAARDEN Bron: RWS 2015 | G45: Samenstelling huishoudelijk restafval,[%] DEFAULTWAARDEN Bron: RWS 2015
B46: Totaal | C46: Verpakkingen | D46: Niet-Verpakkingen | G46: Geïndexeerd naar 100% | I46: Totaal | J46: Verpakkingen | K46: Niet-Verpakkingen
A47: Oud-papier en karton | B47: 0.2 | C47: 0.082 | D47: =B47-C47 -> 0.118 | G47: Oud-papier en karton | I47: =(B47-B48-B49)/$B$60 -> 0.1239956354 | J47: =(C47-C48-C49)/B60 -> 0.04463842873 | K47: =(D47-D48-D49)/B60 -> 0.07935720663
A48: -Drankenkartons | B48: 0.03 | C48: =B48 -> 0.03 | D48: =0% -> 0 | G48: Drankenkartons | I48: =B48/$B$60 -> 0.02975895248 | J48: =C48/$B$60 -> 0.02975895248 | K48: =D48/B60 -> 0
A49: -Niet recycleerbaar | B49: 0.045 | C49: 0.007 | D49: 0.038 | G49: -Niet recycleerbaar | I49: =B49/$B$60 -> 0.04463842873 | J49: =C49/$B$60 -> 0.00694375558 | K49: =D49/$B$60 -> 0.03769467315
A50: Kunststof | B50: 0.14 | C50: 0.088 | D50: =B50-C50 -> 0.052 | G50: Kunststof | I50: =B50/$B$60 -> 0.1388751116 | J50: =C50/$B$60 -> 0.08729292729 | K50: 0.05158218431
A51: Glas | B51: 0.052 | C51: 0.049 | D51: =B51-C51 -> 0.003 | G51: Glas | I51: 0.05158218431 | J51: =C51/$B$60 -> 0.04860628906 | K51: 0.002975895248
A52: Metalen totaal | B52: =B53+B54 -> 0.044 | C52: =C53+C54 -> 0.0308 | D52: =B52-C52 -> 0.0132 | G52: Metalen totaal | I52: 0.04364646364 | J52: =C52/$B$60 -> 0.03055252455 | K52: 0.01309393909
A53: -Ferro metalen | B53: 0.033 | C53: 0.023 | D53: =B53-C53 -> 0.01 | G53: -Ferro metalen | I53: 0.03273484773 | J53: =C53/$B$60 -> 0.02281519691 | K53: 0.009919650828
A54: -Non-Ferrometalen | B54: 0.011 | C54: 0.0078 | D54: =B54-C54 -> 0.0032 | G54: -Non-Ferrometalen | I54: 0.01091161591 | J54: =C54/$B$60 -> 0.007737327646 | K54: 0.003174288265
A55: Organisch materiaal | B55: 0.38 | G55: Organisch materiaal | I55: 0.3769467315
A56: Textiel | B56: 0.041 | G56: Textiel | I56: 0.0406705684
A57: KCA | B57: 0.0011 | G57: KCA | I57: 0.001091161591
A58: Luiers | B58: 0.05 | G58: Luiers | I58: 0.04959825414
A59: Ondefinieerbaar en rest | B59: 0.1 | G59: Ondefinieerbaar en rest | I59: 0.09919650828
B60: =SUM(B47,B50:B52,B55:B59) -> 1.0081 | I60: =SUM(I47:I52,I55:I59) -> 1
A62: PMD | B62: =SUM(Invullen!C73:C76) -> 0
A63: logische test | B63: =IF(OR(B62<95%,B62>105%),0,1) -> 0
B64: Totaal | C64: Verpakkingen | D64: Niet-Verpakkingen | G64: PMD DEFAULTWAARDEN
A65: Kunststof | B65: =IF($B$63=0,G65,Invullen!C73*(100%/$B$62)) -> 0.655430366 | C65: =IF(AND($B$63=0,Invullen!D73=""),Feed!B65*G87,IF(Invullen!D73="",Feed!B65*G87,Invullen!D73*100%/$B$62)) -> 0.5833330257 | D65: =IF(AND($B$63=0,Invullen!E73=""),Feed!B65*(100%-G87),IF(Invullen!E73="",Feed!B65*(100%-G87),Invullen!E73*100%/$B$62)) -> 0.07209734026 | G65: 0.655430366
A66: Metaal | B66: =IF($B$63=0,G66,Invullen!C74*(100%/$B$62)) -> 0.08443490643 | C66: =IF(AND($B$63=0,Invullen!D74=""),Feed!B66*G89,IF(Invullen!D74="",Feed!B66*G89, Invullen!D74*100%/$B$62)) -> 0.06754792515 | D66: =IF(AND($B$63=0,Invullen!E74=""),Feed!B66*(100%-G89),IF(Invullen!E74="", Feed!B66*(100%-G89), Invullen!E74*100%/$B$62)) -> 0.01688698129 | G66: 0.08443490643
A67: Drankenkartons | B67: =IF($B$63=0,G67,Invullen!C75*(100%/$B$62)) -> 0.1298675717 | C67: =100%*B67 -> 0.1298675717 | D67: 0 | G67: 0.1298675717
A68: Rest / Restafval | B68: =IF($B$63=0,G68,Invullen!C76*(100%/$B$62)) -> 0.1302671558 | G68: 0.1302671558
G69: Bron: gemiddelde uit PMD-model
A70: PD | B70: =SUM(Invullen!C85:C87) -> 0
A71: logische test | B71: =IF(OR(B70<95%,B70>105%),0,1) -> 0
B72: Totaal | C72: Verpakkingen | D72: Niet-Verpakkingen | G72: PD DEFAULTWAARDEN
A73: Kunststof | B73: =IF($B$71=0,G73,Invullen!C85*(100%/$B$70)) -> 0.7144428175 | C73: =IF(AND($B$71=0,Invullen!D85=""),Feed!B73*G87,IF(Invullen!D85="",Feed!B73*G87,Invullen!D85*100%/$B$70)) -> 0.6358541076 | D73: =IF(AND($B$71=0,Invullen!E85=""),Feed!B73*(100%-G87),IF(Invullen!E85="",Feed!B73*(100%-G87),Invullen!E85*100%/$B$70)) -> 0.07858870993 | F73: KST | G73: 0.7144428175
A74: Drankenkartons | B74: =IF($B$71=0,G74,Invullen!C86*(100%/$B$70)) -> 0.1555534754 | C74: =100%*B74 -> 0.1555534754 | D74: 0 | F74: DK | G74: 0.1555534754
A75: Rest / Restafval | B75: =IF($B$71=0,G75,Invullen!C87*(100%/$B$70)) -> 0.130003707 | F75: RST | G75: 0.130003707
G76: Bron: gemiddelde uit PMD-model
A77: Nascheiden | B77: =IF(Invullen!C39="Ja",1,0) -> 0
A78: Omrin | B78: =IF(AND(B77=1,Invullen!C41="Omrin"),1,0) -> 0
A79: Attero-Noord | B79: =IF(AND(B77=1,Invullen!C41="Attero-Noord"),1,0) -> 0
A80: Attero-Wijster | B80: =IF(AND(B77=1,Invullen!C41="Attero-Wijster"),1,0) -> 0
A81: HVC | B81: =IF(AND(B77=1,Invullen!C41="HVC"),1,0) -> 0
A83: Samenstelling gescheiden ingezamelde verpakkingsmaterialen | F83: Andere materialen | G83: Pack Ratio | H83: LAMD
B84: Logische test 1 Ingezameld? | C84: Logische test 2 Legitieme invoer and materialen? | D84: L3 PR | E84: L4 LAMD | F84: [%] | G84: [%] | H84: [%]
A85: Oud papier en karton | B85: =IF(B8>0,1,0) -> 0 | C85: =IF(AND(Invullen!C97>0,Invullen!C97<100%),1,0) -> 0 | D85: =IF(AND(Invullen!C107>0,Invullen!C107<100%),1,0) -> 0 | E85: =IF(AND(Invullen!C114>0,Invullen!C114<100%),1,0) -> 0 | F85: =IF(C85=1,Invullen!C97,data!E27) -> 0.042 | G85: =IF(D85=1,Invullen!C107,data!B27) -> 0.35 | H85: =IF(E85=1,Invullen!C114,data!H27) -> 0.1
A86: Glasverpakkingen | B86: 0 | C86: =IF(AND(Invullen!C98>0,Invullen!C98<100%),1,0) -> 0 | D86: =IF(AND(Invullen!C108>0,Invullen!C108<100%),1,0) -> 0 | E86: =IF(AND(Invullen!C115>0,Invullen!C115<100%),1,0) -> 0 | F86: =IF(C86=1,Invullen!C98,data!E29) -> 0.0054 | G86: =IF(D86=1,Invullen!C108,data!B29) -> 0.9989858012 | H86: =IF(E86=1,Invullen!C115,data!H29) -> 0.02
A87: Kunststofverpakkingen | B87: 0 | C87: =IF(AND(Invullen!C99>0,Invullen!C99<100%),1,0) -> 0 | D87: =IF(AND(Invullen!C109>0,Invullen!C109<100%),1,0) -> 0 | E87: =IF(AND(Invullen!C116>0,Invullen!C116<100%),1,0) -> 0 | F87: =IF(C87=1,Invullen!C99,data!E28) -> 0.1 | G87: =IF(D87=1,Invullen!C109,data!B28) -> 0.89 | H87: =IF(E87=1,Invullen!C116,data!H28) -> 0.15
A88: Drankenkartons | B88: 0 | C88: =IF(AND(Invullen!C100>0,Invullen!C100<100%),1,0) -> 0 | D88: =IF(AND(Invullen!C110>0,Invullen!C110<100%),1,0) -> 0 | E88: =IF(AND(Invullen!C117>0,Invullen!C117<100%),1,0) -> 0 | F88: =IF(C88=1,Invullen!C100,data!E31) -> 0.15 | G88: =IF(D88=1,Invullen!C110,data!B31) -> 1 | H88: =IF(E88=1,Invullen!C117,data!H31) -> 0.29
A89: Metaalverpakkingen | B89: 0 | C89: =IF(AND(Invullen!C101>0,Invullen!C101<100%),1,0) -> 0 | D89: =IF(AND(Invullen!D101>0,Invullen!D101<100%),1,0) -> 0 | E89: =IF(AND(Invullen!E101>0,Invullen!E101<100%),1,0) -> 0 | F89: =IF(C89=1,Invullen!C101,data!E30) -> 0.05 | G89: =IF(D89=1,Invullen!D101,data!B30) -> 0.8 | H89: =IF(E89=1,Invullen!E101,data!H30) -> 0.05
A90: PMD | B90: 0 | F90: =B68 -> 0.1302671558
A91: PD | B91: 0 | F91: =B75 -> 0.130003707

Sheet Indicatieve lijst van producten
B2: Hoeveelheid producten van gerecycled materiaal die namens de gemeente zijn geproduceerd
B4: Categorie | C4: Producten | D4: Hoeveelheid product gemaakt van verpakkingsmaterialen | F4: Nederlands gemiddelde | G4: Hoeveelheid product gemaakt van ingezamelde materiaalstromen (inclusief niet-verpakkingen) | I4: Nederlands gemiddelde
D5: [kg netto/jr] | E5: [kg netto/inw.jr] | F5: [kg netto/inw.jr] | G5: [kg netto/jr] | H5: [kg netto/inw.jr] | I5: [kg netto/inw.jr]
B6: OPK | C6: =PB!Q7 -> Krantenpapier | D6: ='R pack'!H4 -> 0 | E6: ='R pack'!L4 -> 0 | F6: 1.712344713 | G6: ='R pack + non pack'!H4 -> 0 | H6: ='R pack + non pack'!L4 -> 0 | I6: 4.858717205
C7: =PB!Q8 -> Ongestreken schrijfpapier | D7: ='R pack'!H5 -> 0 | E7: ='R pack'!L5 -> 0 | F7: 0.3140426667 | G7: ='R pack + non pack'!H5 -> 0 | H7: ='R pack + non pack'!L5 -> 0 | I7: 0.8910848945
C8: =PB!Q9 -> Gestreken schrijfpapier | D8: ='R pack'!H6 -> 0 | E8: ='R pack'!L6 -> 0 | F8: 0.5495746667 | G8: ='R pack + non pack'!H6 -> 0 | H8: ='R pack + non pack'!L6 -> 0 | I8: 1.559398565
C9: =PB!Q10 -> Golfkarton papier | D9: ='R pack'!H7 -> 0 | E9: ='R pack'!L7 -> 0 | F9: 6.3214623 | G9: ='R pack + non pack'!H7 -> 0 | H9: ='R pack + non pack'!L7 -> 0 | I9: 17.93692438
C10: =PB!Q11 -> Pakpapier | D10: ='R pack'!H8 -> 0 | E10: ='R pack'!L8 -> 0 | F10: 0.5346847127 | G10: ='R pack + non pack'!H8 -> 0 | H10: ='R pack + non pack'!L8 -> 0 | I10: 1.51714885
C11: =PB!Q12 -> Massief karton | D11: ='R pack'!H9 -> 0 | E11: ='R pack'!L9 -> 0 | F11: 4.250405058 | G11: ='R pack + non pack'!H9 -> 0 | H11: ='R pack + non pack'!L9 -> 0 | I11: 12.06037314
C12: =PB!Q13 -> Vouwkarton | D12: ='R pack'!H10 -> 0 | E12: ='R pack'!L10 -> 0 | F12: 0.7191170978 | G12: ='R pack + non pack'!H10 -> 0 | H12: ='R pack + non pack'!L10 -> 0 | I12: 2.040469182
C13: =PB!Q14 -> Sanitair papier | D13: ='R pack'!H11 -> 0 | E13: ='R pack'!L11 -> 0 | F13: 0.7065960001 | G13: ='R pack + non pack'!H11 -> 0 | H13: ='R pack + non pack'!L11 -> 0 | I13: 2.004941013
B14: Glas | C14: Verpakkingsglas wit | D14: ='R pack'!H12 -> 0 | E14: ='R pack'!L12 -> 0 | F14: 10.53305337 | G14: ='R pack + non pack'!H12 -> 0 | H14: ='R pack + non pack'!L12 -> 0 | I14: 10.74537716
C15: Verpakkingsglas groen | D15: ='R pack'!H13 -> 0 | E15: ='R pack'!L13 -> 0 | F15: 5.266526687 | G15: ='R pack + non pack'!H13 -> 0 | H15: ='R pack + non pack'!L13 -> 0 | I15: 5.37268858
C16: Verpakkingsglas bruin | D16: ='R pack'!H14 -> 0 | E16: ='R pack'!L14 -> 0 | F16: 2.296819893 | G16: ='R pack + non pack'!H14 -> 0 | H16: ='R pack + non pack'!L14 -> 0 | I16: 2.343118861
C17: Glas bijproducten | D17: ='R pack'!H15 -> 0 | E17: ='R pack'!L15 -> 0 | F17: 0.7454520699 | G17: ='R pack + non pack'!H15 -> 0 | H17: ='R pack + non pack'!L15 -> 0 | I17: 0.7604787864
B18: Metaal-Fe | C18: Constructiestaal | D18: ='R pack'!H19 -> 0 | E18: ='R pack'!L19 -> 0 | F18: 1.716296119 | G18: ='R pack + non pack'!H19 -> 0 | H18: ='R pack + non pack'!L19 -> 0 | I18: 2.444048634
C19: Automotive-staal | D19: ='R pack'!H20 -> 0 | E19: ='R pack'!L20 -> 0 | F19: 0.3432592237 | G19: ='R pack + non pack'!H20 -> 0 | H19: ='R pack + non pack'!L20 -> 0 | I19: 0.4888097268
C20: Verpakkingsstaal | D20: ='R pack'!H21 -> 0 | E20: ='R pack'!L21 -> 0 | F20: 0.5148888356 | G20: ='R pack + non pack'!H21 -> 0 | H20: ='R pack + non pack'!L21 -> 0 | I20: 0.7332145902
C21: Rails | D21: ='R pack'!H22 -> 0 | E21: ='R pack'!L22 -> 0 | F21: 0 | G21: ='R pack + non pack'!H22 -> 0 | H21: ='R pack + non pack'!L22 -> 0 | I21: 0
C22: Duurzame consumentenartikelen | D22: ='R pack'!H23 -> 0 | E22: ='R pack'!L23 -> 0 | F22: 0.3432592237 | G22: ='R pack + non pack'!H23 -> 0 | H22: ='R pack + non pack'!L23 -> 0 | I22: 0.4888097268
C23: Mijnbouwapparatuur | D23: ='R pack'!H24 -> 0 | E23: ='R pack'!L24 -> 0 | F23: 0.3432592237 | G23: ='R pack + non pack'!H24 -> 0 | H23: ='R pack + non pack'!L24 -> 0 | I23: 0.4888097268
C24: Scheepsstaal | D24: ='R pack'!H25 -> 0 | E24: ='R pack'!L25 -> 0 | F24: 0.1716296119 | G24: ='R pack + non pack'!H25 -> 0 | H24: ='R pack + non pack'!L25 -> 0 | I24: 0.2444048634
B25: Metaal-Aluminium | C25: Constructiealuminium | D25: ='R pack'!H26 -> 0 | E25: ='R pack'!L26 -> 0 | F25: 0 | G25: ='R pack + non pack'!H26 -> 0 | H25: ='R pack + non pack'!L26 -> 0 | I25: 0
C26: Transport-aluminium | D26: ='R pack'!H27 -> 0 | E26: ='R pack'!L27 -> 0 | F26: 0.4623605703 | G26: ='R pack + non pack'!H27 -> 0 | H26: ='R pack + non pack'!L27 -> 0 | I26: 0.6584130256
C27: Verpakkingsaluminium | D27: ='R pack'!H28 -> 0 | E27: ='R pack'!L28 -> 0 | F27: 0 | G27: ='R pack + non pack'!H28 -> 0 | H27: ='R pack + non pack'!L28 -> 0 | I27: 0
C28: Machines | D28: ='R pack'!H29 -> 0 | E28: ='R pack'!L29 -> 0 | F28: 0.06164807604 | G28: ='R pack + non pack'!H29 -> 0 | H28: ='R pack + non pack'!L29 -> 0 | I28: 0.08778840341
C29: Diverse toepassingen aluminium | D29: ='R pack'!H30 -> 0 | E29: ='R pack'!L30 -> 0 | F29: 0.03082403802 | G29: ='R pack + non pack'!H30 -> 0 | H29: ='R pack + non pack'!L30 -> 0 | I29: 0.04389420171
C30: Desox | D30: ='R pack'!H31 -> 0 | E30: ='R pack'!L31 -> 0 | F30: 0.06164807604 | G30: ='R pack + non pack'!H31 -> 0 | H30: ='R pack + non pack'!L31 -> 0 | I30: 0.08778840341
B31: Kunststof | C31: Flessen | D31: ='R pack'!H32 -> 0 | E31: ='R pack'!L32 -> 0 | F31: 0 | G31: ='R pack + non pack'!H32 -> 0 | H31: ='R pack + non pack'!L32 -> 0 | I31: 0
C32: Trays | D32: ='R pack'!H33 -> 0 | E32: ='R pack'!L33 -> 0 | F32: 0.2742226081 | G32: ='R pack + non pack'!H33 -> 0 | H32: ='R pack + non pack'!L33 -> 0 | I32: 0.3745798053
C33: Fleece | D33: ='R pack'!H34 -> 0 | E33: ='R pack'!L34 -> 0 | F33: 0.04067191511 | G33: ='R pack + non pack'!H34 -> 0 | H33: ='R pack + non pack'!L34 -> 0 | I33: 0.05519371179
C34: Strapping | D34: ='R pack'!H35 -> 0 | E34: ='R pack'!L35 -> 0 | F34: 0.09182462792 | G34: ='R pack + non pack'!H35 -> 0 | H34: ='R pack + non pack'!L35 -> 0 | I34: 0.1221636008
C35: Kabelomhulling | D35: ='R pack'!H36 -> 0 | E35: ='R pack'!L36 -> 0 | F35: 0.1286678025 | G35: ='R pack + non pack'!H36 -> 0 | H35: ='R pack + non pack'!L36 -> 0 | I35: 0.1691495248
C36: Afvoerpijpen | D36: ='R pack'!H37 -> 0 | E36: ='R pack'!L37 -> 0 | F36: 0.8016449664 | G36: ='R pack + non pack'!H37 -> 0 | H36: ='R pack + non pack'!L37 -> 0 | I36: 1.061141618
C37: Rolkernen | D37: ='R pack'!H38 -> 0 | E37: ='R pack'!L38 -> 0 | F37: 0.1118298492 | G37: ='R pack + non pack'!H38 -> 0 | H37: ='R pack + non pack'!L38 -> 0 | I37: 0.1502304761
C38: Rijplaten | D38: ='R pack'!H39 -> 0 | E38: ='R pack'!L39 -> 0 | F38: 0.5674229844 | G38: ='R pack + non pack'!H39 -> 0 | H38: ='R pack + non pack'!L39 -> 0 | I38: 0.785681372
C39: Afvalcontainers | D39: ='R pack'!H40 -> 0 | E39: ='R pack'!L40 -> 0 | F39: 0.06884518078 | G39: ='R pack + non pack'!H40 -> 0 | H39: ='R pack + non pack'!L40 -> 0 | I39: 0.0884146678
C40: Non-food flacons | D40: ='R pack'!H41 -> 0 | E40: ='R pack'!L41 -> 0 | F40: 0.003907697125 | G40: ='R pack + non pack'!H41 -> 0 | H40: ='R pack + non pack'!L41 -> 0 | I40: 0.005619618936
C41: Bloempotten | D41: ='R pack'!H42 -> 0 | E41: ='R pack'!L42 -> 0 | F41: 0.3535157387 | G41: ='R pack + non pack'!H42 -> 0 | H41: ='R pack + non pack'!L42 -> 0 | I41: 0.470749467
C42: Kratten | D42: ='R pack'!H43 -> 0 | E42: ='R pack'!L43 -> 0 | F42: 0.1334277968 | G42: ='R pack + non pack'!H43 -> 0 | H42: ='R pack + non pack'!L43 -> 0 | I42: 0.1793351816
C43: Boombekisting | D43: ='R pack'!H44 -> 0 | E43: ='R pack'!L44 -> 0 | F43: 0.1100439709 | G43: ='R pack + non pack'!H44 -> 0 | H43: ='R pack + non pack'!L44 -> 0 | I43: 0.1457071427
C44: Apparaatbehuizing | D44: ='R pack'!H45 -> 0 | E44: ='R pack'!L45 -> 0 | F44: 0.02338382588 | G44: ='R pack + non pack'!H45 -> 0 | H44: ='R pack + non pack'!L45 -> 0 | I44: 0.03362803885
C45: Pallets | D45: ='R pack'!H46 -> 0 | E45: ='R pack'!L46 -> 0 | F45: 0.3714474301 | G45: ='R pack + non pack'!H46 -> 0 | H45: ='R pack + non pack'!L46 -> 0 | I45: 0.513646047
C46: Tuinmeubelen | D46: ='R pack'!H47 -> 0 | E46: ='R pack'!L47 -> 0 | F46: 0.1464224523 | G46: ='R pack + non pack'!H47 -> 0 | H46: ='R pack + non pack'!L47 -> 0 | I46: 0.1954067335
C47: Speeltoestellen | D47: ='R pack'!H48 -> 0 | E47: ='R pack'!L48 -> 0 | F47: 0.356972725 | G47: ='R pack + non pack'!H48 -> 0 | H47: ='R pack + non pack'!L48 -> 0 | I47: 0.4727706885
C48: Verkeersafscheiders | D48: ='R pack'!H49 -> 0 | E48: ='R pack'!L49 -> 0 | F48: 0.1623398892 | G48: ='R pack + non pack'!H49 -> 0 | H48: ='R pack + non pack'!L49 -> 0 | I48: 0.2231949847
C49: Oeverbeschoeiing | D49: ='R pack'!H50 -> 0 | E49: ='R pack'!L50 -> 0 | F49: 0.1623398892 | G49: ='R pack + non pack'!H50 -> 0 | H49: ='R pack + non pack'!L50 -> 0 | I49: 0.2231949847
C50: Steigers plastic lumber | D50: ='R pack'!H51 -> 0 | E50: ='R pack'!L51 -> 0 | F50: 0.6047843352 | G50: ='R pack + non pack'!H51 -> 0 | H50: ='R pack + non pack'!L51 -> 0 | I50: 0.8144884485
C51: Bouwemmers, speciekuipen | D51: ='R pack'!H52 -> 0 | E51: ='R pack'!L52 -> 0 | F51: 0.2594045751 | G51: ='R pack + non pack'!H52 -> 0 | H51: ='R pack + non pack'!L52 -> 0 | I51: 0.3730470443
B52: Drankenkartons | C52: Vezels /Solid board | D52: ='R pack'!H55 -> 0 | E52: ='R pack'!L55 -> 0 | F52: 0.09626433491 | G52: ='R pack + non pack'!H55 -> 0 | H52: ='R pack + non pack'!L55 -> 0 | I52: 0.09626433491
C53: Vezels / Container board | D53: ='R pack'!H56 -> 0 | E53: ='R pack'!L56 -> 0 | F53: 0.08105786297 | G53: ='R pack + non pack'!H56 -> 0 | H53: ='R pack + non pack'!L56 -> 0 | I53: 0.08105786297
C54: Vezels / Sanitary paper | D54: ='R pack'!H57 -> 0 | E54: ='R pack'!L57 -> 0 | F54: 0 | G54: ='R pack + non pack'!H57 -> 0 | H54: ='R pack + non pack'!L57 -> 0 | I54: 0
B55: Totaal | D55: =SUM(D6:D54) -> 0 | E55: 0 | F55: 42.94959469 | G55: 0 | H55: 0 | I55: 74.49136728

Sheet data (hidden)
A1: Nationale data 2013 CBS | B1: Gevonden waarden | C1: Eenheid | D1: Bron | E1: Nationale data 2014 CBS | K1: 2013 | L1: 2014
A2: Hoeveelheid restafval 2013 | B2: 3526 | C2: [kton] | D2: CBS Statline | E2: 3451 | F2: [kton] | G2: CBS statline | K2: =B2*1000000/$B$8 -> 209.1642784 | L2: =E2*1000000/$E$8 -> 204.1770205
A3: Hoeveelheid gescheiden ingezameld huishoudelijk OPK 2013 | B3: 924 | C3: [kton] | D3: CBS Statline | E3: 929 | F3: [kton] | G3: CBS statline | K3: 54.8121932 | L3: 54.9639096
A4: Hoeveelheid gescheiden ingezameld huishoudelijk Glas 2013 | B4: 344 | C4: [kton] | D4: CBS Statline | E4: 340 | F4: [kton] | G4: CBS statline | K4: 20.40627106 | L4: 20.11596261
A5: Hoeveelheid gescheiden ingezameld huishoudelijk Kunststof 2013 | B5: 116 | C5: [kton] | D5: CBS Statline/ Nedvang | E5: 129 | F5: [kton] | G5: CBS statline | K5: 6.881184427 | L5: 7.632232872
A6: Hoeveelheid gescheiden ingezameld huishoudelijk Metaalverpakkingen 2013 | B6: 2 | C6: [kton] | D6: CBS Statline | E6: 2 | F6: [kton] | G6: CBS statline | K6: 0.1186411108 | L6: 0.1183291918
A7: Hoeveelheid gescheiden ingezamelde huishoudelijk drankenkartons 2013 | B7: 4 | C7: [kton] | D7: CBS Statline | E7: 4 | F7: [kton] | G7: CBS statline | K7: 0.2372822216 | L7: 0.2366583836
A8: Hoeveelheid inwoners NL | B8: 16857563 | C8: [#] | D8: Gemeentelijst | E8: 16902000
A9: Hoeveelheid huishoudens NL | B9: 7639826 | C9: [#] | D9: Gemeentelijst
A11: Hoeveelheden op de markt gebrachte verpakkingsmaterialen 2013
A12: >Kunststofverpakkingen | B12: 463 | C12: [kton] | D12: Nedvang monitoringsverslag 2013 | E12: 474 | F12: [kton] | G12: Nedvang monitoringsverslag 2014
A13: >OPK-verpakkingen | B13: =1191-B16 -> 1121 | C13: [kton] | D13: Nedvang monitoringsverslag 2013 | E13: =1167-70 -> 1097 | F13: [kton] | G13: Nedvang monitoringsverslag 2014
A14: >Glazen verpakkingen | B14: 546 | C14: [kton] | D14: Nedvang monitoringsverslag 2013 | E14: 526 | F14: [kton] | G14: Nedvang monitoringsverslag 2014
A15: >Metalen verpakkingen | B15: 205 | C15: [kton] | D15: Nedvang monitoringsverslag 2013 | E15: 221 | F15: [kton] | G15: Nedvang monitoringsverslag 2014
A16: >Drankenkartons | B16: 70 | C16: [kton] | E16: 70 | F16: [kton]
A19: Verpakkingen in het restafval | B19: Percentage van dit materiaal in restafval dat voor verpakkingen wordt gebruikt | G19: Gehalte vocht en vuil | H19: [%] | I19: Bron
A20: Oud-papier en karton | B20: =Feed!C47/Feed!B47 -> 0.41 | D20: Samenstellingsanalyse restafval 2013 | G20: 0.4 | I20: Friese meting
A21: Kunststof | B21: =Feed!C50/Feed!B50 -> 0.6285714286 | D21: Samenstellingsanalyse restafval 2013 | G21: 0.4 | I21: Friese meting
A22: Glas | B22: =Feed!C51/Feed!B51 -> 0.9423076923 | D22: Samenstellingsanalyse restafval 2013 | G22: 0.08 | I22: Friese meting
A23: Metaal | B23: =Feed!C52/Feed!B52 -> 0.7 | D23: Samenstellingsanalyse restafval 2013 | G23: 0.25 | I23: Friese meting
A24: Drankenkartons | B24: 1 | G24: 0.41 | I24: Pilot drankenkartons, Attero Noord
A26: Gescheiden inzamelstromen | B26: Gehalte Verpakkingen | E26: Percentage restafval, [%] | H26: Percentage vocht en vuil, [%]
A27: Oud papier en karton | B27: 0.35 | C27: [%] | D27: PRN factsheet/Nedvang middeling | E27: 0.042 | F27: [%] | G27: Factsheet vervuiling PRN | H27: 0.1 | I27: [%]
A28: Kunststof | B28: 0.89 | D28: Eigen sorteeranalyses, FBR 1487 | E28: 0.1 | F28: FBR 1487 | G28: Eigen sorteeranalyses, FBR 1487 | H28: 0.15
A29: Glas | B29: =98.5/98.6 -> 0.9989858012 | D29: Vervuilingsonderzoek 2014 Nedvang | E29: 0.0054 | G29: Vervuilingsrapport Nedvang | H29: 0.02
A30: Metaal | B30: 0.8 | D30: Schatting | E30: 0.05 | H30: 0.05 | I30: Meting PMD Deventer
A31: Drankenkartons | B31: 1 | D31: Geen niet-verpakkingen in pilot | E31: 0.15 | F31: Pilot | H31: 0.29 | I31: Pilot
A33: Gescheiden inzamelstromen, hoeveelheden, [kton] | B33: Huishoudelijk, bron | C33: HH, na | D33: Bedrijfsmatig | E33: Totaal
A34: Oud papier en karton | B34: 898 | D34: 1387 | E34: =B34+C34+D34 -> 2285 | F34: [kton] | G34: Nedvang monitoringsverslag 2014
A35: Kunststof | B35: 131 | C35: 31 | D35: 121 | E35: =B35+C35+D35 -> 283 | F35: [kton] | G35: Nedvang monitoringsverslag 2014
A36: Glas | B36: 338 | D36: 76 | E36: =B36+C36+D36 -> 414 | F36: [kton] | G36: Nedvang monitoringsverslag 2014
A37: Metaal | B37: =5+6 -> 11 | C37: 87 | D37: 110 | E37: =B37+C37+D37 -> 208 | F37: [kton] | G37: Nedvang monitoringsverslag 2014
A38: Drankenkartons
A42: Technische kengetallen van Nascheidingsinstallaties | B42: Omrin Oude Haske | D42: Attero Noord | E42: Attero Wijster | F42: HVC
A43: Hoeveelheid restafval per jaar | B43: 165845 | C43: [ton/jaar] | D43: 104332.303 | E43: 472949.756 | G43: Bronnen: gegevens van nascheiders
A44: Hoeveelheid aangesloten inwoners | B44: 785887 | C44: [#] | D44: 479688 | E44: 2682847
A45: Hoeveelheid aangesloten aansluitingen | B45: 342986 | C45: [#] | D45: 242764 | E45: 1415663
A46: Gehalte kunststof in het ingaande restafval | B46: 0.2 | C46: [%] | D46: 0.1884003011 | E46: 0.1357433094 | G46: =E46/B46 -> 0.6787165472
A47: Gehalte kunststofverpakkingen in het ingaande restafval | B47: =B46*B21 -> 0.1257142857 | C47: [%] | D47: 0.1205761927 | E47: 0.08687571804
A48: Verwachte productie DKR stromen uit het nagescheiden kunststof | B48: 12800 | C48: [ton/jaar] | D48: 7011.05 | E48: 11127.31714
A49: Nascheidingsefficiëntie 2017 | B49: 0.324 | D49: 0.322 | E49: 0.178 | F49: 0.32 | G49: Verhouding brutogewicht sorteerproducten versus brutogewicht in huisvuil
A51: OPK cijfers van PRN factsheet
A52: Consumptie PK in 2012 in NL | B52: 2841 | C52: [kton]
A53: Consumptie PK niet-verpakkingen in 2012 in NL | B53: 1712 | C53: [kton]
A54: Consumptie PK verpakkingen in 2012 in NL | B54: =1129 -> 1129 | C54: [kton]
A55: waarvan drankenkartons | B55: 70 | C55: [kton]
A57: Gescheiden ingezameld bij huishoudens in 2012 in NL
A58: PK-niet verpakkingen | B58: 766 | C58: [kton]
A59: PK-verpakkingen | B59: 229 | C59: [kton]
A61: Gescheiden ingezameld bij bedrijven in 2012 in NL
A62: PK-niet verpakkingen | B62: 609 | C62: [kton]
A63: PK-verpakkingen | B63: 776 | C63: [kton]

Sheet Netto (hidden)
A1: Berekening netto hoeveelheden in huisvuil | H1: Berekening voor totaalmateriaal (verpakking+niet-verpakking)
C2: Aftrek niet-verpakkingen | D2: Aftrek vocht en vuil | E2: alleen verpakkingen | H2: ook niet-verpakkingen
A3: Verpakkingsmaterialen in het huisvuil | B3: Bruto hoeveelheid, [kg bruto/jaar] | C3: Bruto hoeveelheid, [kg bruto/jaar] | D3: Netto hoeveelheid, [kg netto/jaar] | E3: Netto hoeveelheid, [kg netto/inw.jr] | H3: Netto totale materiaalhoeveelheid, [kg netto/jaar] | I3: Netto totale materiaalhoeveelheid, [kg netto/inw.jaar]
A4: Papier & karton | B4: =Feed!B34*Feed!C7*1000 -> 0 | C4: =Feed!C7*Feed!C34*1000 -> 0 | D4: =C4*(100%-data!G20) -> 0 | E4: =IF(Feed!$B$2=0,0,D4/Feed!$B$2) -> 0 | H4: =B4*(100%-data!G20) -> 0 | I4: =IF(Feed!$B$2=0,0,H4/Feed!$B$2) -> 0
A5: Kunststof | B5: =Feed!B36*Feed!C7*1000 -> 0 | C5: =Feed!C7*Feed!C36*1000 -> 0 | D5: =C5*(100%-data!G21) -> 0 | E5: =IF(Feed!$B$2=0,0,D5/Feed!$B$2) -> 0 | H5: =B5*(100%-data!G21) -> 0 | I5: =IF(Feed!$B$2=0,0,H5/Feed!$B$2) -> 0
A6: Glas | B6: =Feed!B37*Feed!C7*1000 -> 0 | C6: =Feed!C37*Feed!C7*1000 -> 0 | D6: =C6*(100%-data!G22) -> 0 | E6: =IF(Feed!$B$2=0,0,D6/Feed!$B$2) -> 0 | H6: =B6*(100%-data!G22) -> 0 | I6: =IF(Feed!$B$2=0,0,H6/Feed!$B$2) -> 0
A7: Metaal | B7: =Feed!B38*Feed!C7*1000 -> 0 | C7: =Feed!C38*Feed!C7*1000 -> 0 | D7: =C7*(100%-data!G23) -> 0 | E7: =IF(Feed!$B$2=0,0,D7/Feed!$B$2) -> 0 | H7: =B7*(100%-data!G23) -> 0 | I7: =IF(Feed!$B$2=0,0,H7/Feed!$B$2) -> 0
A8: Drankenkarton | B8: =Feed!B41*Feed!C7*1000 -> 0 | C8: =B8 -> 0 | D8: =C8*(100%-data!G24) -> 0 | E8: =IF(Feed!$B$2=0,0,D8/Feed!$B$2) -> 0 | H8: =D8 -> 0 | I8: =IF(Feed!$B$2=0,0,H8/Feed!$B$2) -> 0
A9: Totaal | B9: =SUM(B4:B8) -> 0 | C9: =SUM(C4:C8) -> 0 | D9: =SUM(D4:D8) -> 0 | E9: =SUM(E4:E8) -> 0 | H9: =SUM(H4:H8) -> 0 | I9: =SUM(I4:I8) -> 0
A20: Berekening netto hoeveelheden in gescheiden inzamelstromen | H20: Berekening voor totaalmateriaal (verpakking+niet-verpakking)
C21: Aftrek restafval | D21: Aftrek niet-verpakkingen | E21: Aftrek vocht en vuil | H21: ook niet-verpakkingen
A22: Verpakkingsmaterialen in gescheiden inzamelstromen | B22: Bruto totale hoeveelheid, [kg bruto/jaar] | C22: Bruto hoeveelheid verpakkingen, [kg bruto/jaar] | D22: Bruto hoeveelheid verpakkingen, [kg bruto/jaar] | E22: Netto hoeveelheid verpakkingen, [kg netto/jaar] | F22: Netto hoeveelheid, [kg netto/inw.jr] | H22: Netto totale materiaalhoeveelheid, [kg netto/jaar] | I22: Netto totale materiaalhoeveelheid, [kg netto/inw.jaar]
A23: Papier & karton verpakkingen in OPK | B23: =Feed!C8*1000 -> 0 | C23: =B23*(100%-Feed!F85) -> 0 | D23: =C23*Feed!G85 -> 0 | E23: =D23*(100%-Feed!H85) -> 0 | F23: =IF(Feed!$B$2=0,0,E23/Feed!$B$2) -> 0 | H23: =C23*(100%-Feed!H85) -> 0 | I23: =IF(Feed!$B$2=0,0,H23/Feed!$B$2) -> 0
A24: Kunststof in mono-inzameling | B24: =Feed!C10*1000 -> 0 | C24: =B24*(100%-Feed!F87) -> 0 | D24: =C24*Feed!G87 -> 0 | E24: =D24*(100%-Feed!H87) -> 0 | F24: =IF(Feed!$B$2=0,0,E24/Feed!$B$2) -> 0 | H24: =C24*(100%-Feed!H87) -> 0 | I24: =IF(Feed!$B$2=0,0,H24/Feed!$B$2) -> 0
A25: Kunststof in PMD-inzameling | B25: =Feed!C13*Feed!B65*1000 -> 0 | C25: =B25 -> 0 | D25: =Feed!C13*Feed!C65*1000 -> 0 | E25: =D25*(100%-Feed!H87) -> 0 | F25: =IF(Feed!$B$2=0,0,E25/Feed!$B$2) -> 0 | H25: =C25*(100%-Feed!H87) -> 0 | I25: =IF(Feed!$B$2=0,0,H25/Feed!$B$2) -> 0
A26: Kunststof in PD-inzameling | B26: =Feed!C14*Feed!B73*1000 -> 0 | C26: =B26 -> 0 | D26: =Feed!B14*Feed!C73*1000 -> 0 | E26: =D26*(100%-Feed!H87) -> 0 | F26: =IF(Feed!$B$2=0,0,E26/Feed!$B$2) -> 0 | H26: =C26*(100%-Feed!H87) -> 0 | I26: =IF(Feed!$B$2=0,0,H26/Feed!$B$2) -> 0
A27: Glas (wit, groen, bruin) glasbak | B27: =Feed!K22*1000 -> 0 | C27: =B27*(100%-Feed!$F$86) -> 0 | D27: =C27*Feed!$G$86 -> 0 | E27: =D27*(100%-Feed!$H$86) -> 0 | F27: =IF(Feed!$B$2=0,0,E27/Feed!$B$2) -> 0 | H27: =C27*(100%-Feed!H86) -> 0 | I27: =IF(Feed!$B$2=0,0,H27/Feed!$B$2) -> 0
A28: Glas (wit, bont) glasbak | B28: =Feed!K23*1000 -> 0 | C28: =B28*(100%-Feed!$F$86) -> 0 | D28: =C28*Feed!$G$86 -> 0 | E28: =D28*(100%-Feed!$H$86) -> 0 | F28: =IF(Feed!$B$2=0,0,E28/Feed!$B$2) -> 0 | H28: =C28*(100%-Feed!H86) -> 0 | I28: =IF(Feed!$B$2=0,0,H28/Feed!$B$2) -> 0
A29: Glas in Bonte glasbak | B29: =Feed!K24*1000 -> 0 | C29: =B29*(100%-Feed!$F$86) -> 0 | D29: =C29*Feed!$G$86 -> 0 | E29: =D29*(100%-Feed!$H$86) -> 0 | F29: =IF(Feed!$B$2=0,0,E29/Feed!$B$2) -> 0 | H29: =C29*(100%-Feed!H86) -> 0 | I29: =IF(Feed!$B$2=0,0,H29/Feed!$B$2) -> 0
A30: Metaal in mono-inzameling | B30: =Feed!C12*1000 -> 0 | C30: =B30*(100%-Feed!F89) -> 0 | D30: =C30*Feed!G89 -> 0 | E30: =D30*(100%-Feed!H89) -> 0 | F30: =IF(Feed!$B$2=0,0,E30/Feed!$B$2) -> 0 | H30: =C30*(100%-Feed!H89) -> 0 | I30: =IF(Feed!$B$2=0,0,H30/Feed!$B$2) -> 0
A31: Metaal in PMD-inzameling | B31: =Feed!C13*Feed!B66*1000 -> 0 | C31: =B31 -> 0 | D31: =Feed!C13*Feed!C66*1000 -> 0 | E31: =D31*(100%-Feed!H89) -> 0 | F31: =IF(Feed!$B$2=0,0,E31/Feed!$B$2) -> 0 | H31: =C31*(100%-Feed!H89) -> 0 | I31: =IF(Feed!$B$2=0,0,H31/Feed!$B$2) -> 0
A32: Drankenkarton in mono-inzameling | B32: =Feed!C11*1000 -> 0 | C32: =B32*(100%-Feed!F88) -> 0 | D32: =C32*Feed!G88 -> 0 | E32: =D32*(100%-Feed!H88) -> 0 | F32: =IF(Feed!$B$2=0,0,E32/Feed!$B$2) -> 0 | H32: =C32*(100%-Feed!H88) -> 0 | I32: =IF(Feed!$B$2=0,0,H32/Feed!$B$2) -> 0
A33: Drankenkarton in PMD-inzameling | B33: =Feed!C13*Feed!B67*1000 -> 0 | C33: =B33 -> 0 | D33: =Feed!C13*Feed!C67*1000 -> 0 | E33: =D33*(100%-Feed!H88) -> 0 | F33: =IF(Feed!$B$2=0,0,E33/Feed!$B$2) -> 0 | H33: =C33*(100%-Feed!H88) -> 0 | I33: =IF(Feed!$B$2=0,0,H33/Feed!$B$2) -> 0
A34: Drankenkarton in PD-inzameling | B34: =Feed!B14*Feed!B74*1000 -> 0 | C34: =B34 -> 0 | D34: =Feed!C14*Feed!C74*1000 -> 0 | E34: =D34*(100%-Feed!H88) -> 0 | F34: =IF(Feed!$B$2=0,0,E34/Feed!$B$2) -> 0 | H34: =C34*(100%-Feed!H88) -> 0 | I34: =IF(Feed!$B$2=0,0,H34/Feed!$B$2) -> 0
A35: Totaal | B35: =SUM(B23:B34) -> 0 | C35: =SUM(C23:C34) -> 0 | D35: =SUM(D23:D34) -> 0 | E35: =SUM(E23:E34) -> 0 | F35: =SUM(F23:F34) -> 0 | H35: =SUM(H23:H34) -> 0 | I35: =SUM(I23:I34) -> 0
A41: Berekening potentiaal verpakkingen | H41: Berekening voor totaalmateriaal (verpakking+niet-verpakking)
H42: ook niet-verpakkingen
A43: De hoeveelheid verpakkingen die in de gemeente aanwezig zijn | C43: Bruto hoeveelheid verpakkingen, [kg bruto/jaar] | D43: Netto hoeveelheid verpakkingen, [kg netto/jaar] | E43: Netto hoeveelheid, [kg netto/inw.jr] | H43: Netto totale materiaalhoeveelheid, [kg netto/jaar] | I43: Netto totale materiaalhoeveelheid, [kg netto/inw.jaar] | K43: vermenigvuldigingsfactoren
A44: Papier & karton | C44: =C4+D23 -> 0 | D44: =D4+E23 -> 0 | E44: =E4+F23 -> 0 | H44: =H4+H23 -> 0 | I44: =I4+I23 -> 0 | K44: =IF(D44=0,0,H44/D44) -> 0
A45: Kunststof | C45: =C5+D24+D25+D26 -> 0 | D45: =D5+E24+E25+E26 -> 0 | E45: =E5+F24+F25+F26 -> 0 | H45: =H5+H24+H25+H26 -> 0 | I45: =I5+I24+I25+I26 -> 0 | K45: =IF(D45=0,0, H45/D45) -> 0
A46: Glas | C46: =C6+D27+D28+D29 -> 0 | D46: =D6+E27+E28+E29 -> 0 | E46: =E6+F27+F28+F29 -> 0 | H46: =H6+H27+H28+H29 -> 0 | I46: =I6+I27+I28+I29 -> 0 | K46: =IF(D46=0,0, H46/D46) -> 0
A47: Metaal | C47: =C7+D30+D31 -> 0 | D47: =D7+E30+E31 -> 0 | E47: =E7+F30+F31 -> 0 | H47: =H7+H30+H31 -> 0 | I47: =I7+I30+I31 -> 0 | K47: =IF(D47=0,0, H47/D47) -> 0
A48: Drankenkarton | C48: =C8+D32+D33+D34 -> 0 | D48: =D8+E32+E33+E34 -> 0 | E48: =E8+F32+F33+F34 -> 0 | H48: =H8+H32+H33+H34 -> 0 | I48: =I8+I32+I33+I34 -> 0 | K48: =IF(D48=0,0, H48/D48) -> 0
A49: Totaal | C49: =B9+D35 -> 0 | D49: =D9+E35 -> 0 | E49: =SUM(E44:E48) -> 0 | H49: =H9+H35 -> 0 | I49: =SUM(I44:I48) -> 0
A61: Berekening netto massarendement van inzameling | H61: Berekening voor totaalmateriaal (verpakking+niet-verpakking)
C62: Bruto inzamelmassarendement, [%] | D62: Netto inzamelmassarendement, [%] | H62: Bruto inzamelmassarendement, [%] | I62: Netto inzamelmassarendement, [%]
A63: Papier & karton | C63: =D23/C44 ->  | D63: =E23/D44 ->  | I63: =I23/I44 -> 
A64: Kunststof | C64: =(D24+D25)/C45 ->  | D64: =(E24+E25)/D45 ->  | I64: =(I24+I25)/I45 -> 
A65: Glas | C65: =D27/C46 ->  | D65: =E27/D46 ->  | I65: =I27/I46 -> 
A66: Metaal | C66: =(D30+D31)/C47 ->  | D66: =(E30+E31)/D47 ->  | I66: =(I30+I31)/I47 -> 
A67: Drankenkarton | C67: =(D32+D33)/C48 ->  | D67: =(E32+E33)/D48 ->  | I67: =(I32+I33)/I48 -> 

Sheet PB (hidden)
K1: Hoeveelheid door de gemeente ingezamelde OPK verpakkingen | R1: =Netto!D23 -> 0 | S1: [kg bruto verpakkingen/jaar]
A2: Afzetverdeling PRN 2014 | B2: [ton in 2014] | C2: Recycled content | D2: Inzet OPK | E2: Inzet nieuw | F2: Verdeling recycled content over het geheel | G2: Geindexeerd | I2: Productieverdeling | R2: =Netto!E23 -> 0 | S2: [kg netto verpakkingen ds/jaar]
A3: Krantenpapier | B3: 253000 | C3: 1 | D3: =C3*B3 -> 253000 | E3: =B3-D3 -> 0 | F3: =C3*B3/SUM($B$3:$B$10) -> 0.09123692752 | G3: =F3/$F$11 -> 0.1133385597 | I3: OPK verpakkingen
A4: Ongestreken schrijfpapier | B4: 232000 | C4: 0.2 | D4: =C4*B4 -> 46400 | E4: =B4-D4 -> 185600 | F4: =C4*B4/SUM($B$3:$B$10) -> 0.01673278038 | G4: =F4/$F$11 -> 0.02078620226 | Q4: Inzet voor hergebruik | R4: =R1*D33 -> 0 | S4: [kg bruto verpakkingen/jaar] | W4: Sorteerverlies | X4: =R1-R4 -> 0 | Y4: [kg bruto verp/jaar]
A5: Gestreken schrijfpapier | B5: 406000 | C5: 0.2 | D5: 81200 | E5: 324800 | F5: 0.02928236567 | G5: 0.03637585396 | Q5: Productie hergebruik | R5: =C27*R4 -> 0 | S5: [kg hergebruikt OPK/jaar] | W5: Hergebruiksverlies | X5: =R4-R5 -> 0 | Y5: [kg bruto verp/jaar]
A6: Golfkarton papier | B6: 934000 | C6: 1 | D6: 934000 | E6: 0 | F6: 0.3368193292 | G6: 0.4184119162 | I6: =B6/SUM($B$6:$B$9) -> 0.5288788222 | J6: =I6*C6 -> 0.5288788222 | K6: =J6*100%/$J$11 -> 0.5345542996 | Q6: Inzet bij productie van
A7: Pakpapier | B7: 79000 | C7: 1 | D7: 79000 | E7: 0 | F7: 0.02848900108 | G7: 0.03539030127 | I7: =B7/SUM($B$6:$B$9) -> 0.04473386183 | J7: =I7*C7 -> 0.04473386183 | K7: =J7*100%/$J$11 -> 0.04521390757 | Q7: Krantenpapier | R7: =$R$5*G3 -> 0
A8: Massief karton | B8: 628000 | C8: 1 | D8: 628000 | E8: 0 | F8: 0.2264695276 | G8: 0.2813304961 | I8: =B8/SUM($B$6:$B$9) -> 0.355605889 | J8: =I8*C8 -> 0.355605889 | K8: =J8*100%/$J$11 -> 0.3594219488 | Q8: Ongestreken schrijfpapier | R8: 0
A9: Vouwkarton | B9: 125000 | C9: 0.85 | D9: 106250 | E9: 18750 | F9: 0.03831590335 | G9: 0.04759771531 | I9: =B9/SUM($B$6:$B$9) -> 0.07078142695 | J9: =I9*C9 -> 0.06016421291 | K9: =J9*100%/$J$11 -> 0.06080984404 | Q9: Gestreken schrijfpapier | R9: 0
A10: Sanitair papier | B10: 116000 | C10: 0.9 | D10: 104400 | E10: 11600 | F10: 0.03764875586 | G10: 0.04676895509 | Q10: Golfkarton papier | R10: 0
B11: =SUM(B3:B10) -> 2773000 | D11: =SUM(D3:D10) -> 2232250 | E11: =SUM(E3:E10) -> 540750 | F11: =SUM(F3:F10) -> 0.8049945907 | I11: =SUM(I6:I9) -> 1 | J11: =SUM(J6:J10) -> 0.989382786 | K11: =SUM(K6:K10) -> 1 | Q11: Pakpapier | R11: 0
A12: Overall grondstofinzet 2014 PRN, [kton] | D12: =D11/(D11+E11) -> 0.8049945907 | E12: =E11/(E11+D11) -> 0.1950054093 | Q12: Massief karton | R12: 0
A13: Oudpapier | B13: 2209 | C13: =B13/$B$16 -> 0.7082398205 | Q13: Vouwkarton | R13: 0
A14: Nieuw vezel | B14: 544 | C14: =B14/$B$16 -> 0.1744148766 | Q14: Sanitair papier | R14: 0
A15: Vulmiddelen | B15: 366 | C15: =B15/$B$16 -> 0.117345303
B16: =SUM(B13:B15) -> 3119
A18: Afval NL papierindustrie volgens CBS, 2012, [ton]
A19: Papierafval | B19: 202000
A20: IJzerafval | B20: 20000 | I20: inzetmassa | J20: =B13 -> 2209 | K20: [kton/a] | M20: outputvezel | O20: =J20-262 -> 1947 | P20: [kton/a]
A21: Gemengd metaalafval | B21: 3000 | I21: cvezel | J21: 0.958 | M21: cvezel | O21: 1
A22: Textielafval | B22: 1000 | I22: massa vezel | J22: =J20*J21 -> 2116.222 | K22: [kton/a]
A23: Plasticafval | B23: 22000 | I23: massa veront | J23: =J20-J22 -> 92.778 | K23: [kton/a]
A24: Houtafval | B24: 14000 | M24: vezelopbrengst | O24: =O20/J22 -> 0.9200357996
A25: Totaal | B25: =SUM(B19:B24) -> 262000
A26: Productieverlies bij hergebruik | B26: =B25/(B16*1000) -> 0.08400128246 | C26: =100%-B26 -> 0.9159987175 | E26: Hergebruiksrendement
A27: Alleen betrokken op recycled input | B27: =B25/(B13*1000) -> 0.1186057039 | C27: =100%-B27 -> 0.8813942961 | E27: Hergebruiksrendement tov oudpapier
A29: Om hieruit de productie per gemeente te berekenen, moet hieruit het aandeel van het totaal in relatie tot verpakkingen worden berekend.
A31: Consumptie papier en karton 2014 | B31: 2986000
A32: Ingezameld | B32: 2375000
A33: Ingezet voor recycling | B33: 2209000 | C33: =B32-B33 -> 166000 | D33: =100%-C33/B32 -> 0.9301052632 | E33: Dit verschil zijn sorteer en vochtverliezen

Sheet Glass (hidden)
A1: Namens de gemeente ingezameld glas
A3: Kleurgescheiden Wit, Groen en Bruin apart ingezameld | J3: Verliesverdeling
B4: =Netto!D27 -> 0 | C4: [kg bruto/jr] | D4: =Netto!E27 -> 0 | E4: [kg netto/jr] | J4: Glas bijproduct | K4: Steen, mineralen, opvul | L4: Metaal | M4: plasticafval
J5: 0.5 | K5: 0.2 | L5: 0.1 | M5: 0.2
D6: Feedstock | F6: Sorteerverlies | I6: Verpakkingsglas | J6: Glas bijproduct | K6: Steen, mineralen, opvul | L6: Metaal | M6: plasticafval
A7: Gemiddelde kleurensamenstelling | D7: [kg netto/jr] | F7: [%] | I7: [kg netto/jr] | J7: [kg netto/jr] | K7: [kg netto/jr] | L7: [kg netto/jr] | M7: [kg netto/jr]
A8: Transparant | B8: 0.6 | D8: =Feed!G86*(100%-Feed!$F$86)*(100%-Feed!$H$86)*IF(Feed!O22<>0,Feed!O22*1000,Netto!B27*Glass!B8) -> 0 | F8: 0.06 | I8: =D8*(100%-F8) -> 0 | J8: =$D8*$F8*J$5 -> 0 | K8: 0 | L8: 0 | M8: 0
A9: Groen | B9: 0.3 | D9: =Feed!G86*(100%-Feed!$F$86)*(100%-Feed!$H$86)*IF(Feed!O23<>0,Feed!O23*1000,Netto!B27*Glass!B9) -> 0 | F9: 0.06 | I9: =D9*(100%-F9) -> 0 | J9: 0 | K9: 0 | L9: 0 | M9: 0
A10: Bruin | B10: 0.1 | D10: =Feed!G86*(100%-Feed!$F$86)*(100%-Feed!$H$86)*IF(Feed!O24<>0,Feed!O24*1000,Netto!B27*Glass!B10) -> 0 | F10: 0.1 | I10: =D10*(100%-F10) -> 0 | J10: 0 | K10: 0 | L10: 0 | M10: 0
I11: =SUM(I8:I10) -> 0 | J11: =SUM(J8:J10) -> 0 | K11: =SUM(K8:K10) -> 0 | L11: =SUM(L8:L10) -> 0 | M11: =SUM(M8:M10) -> 0
A13: Kleurgescheiden Wit en Bont apart ingezameld
J15: 0.5 | K15: 0.2 | L15: 0.1 | M15: 0.2
D16: Feedstock | E16: Feedstock | F16: Alg. Sorteerverlies | G16: Kleur sorteerverlies | H16: Verpakkingsglas pot | I16: Verpakkingsglas echt | J16: Glas bijproduct | K16: Steen, mineralen, opvul | L16: Metaal | M16: plasticafval
A17: Gemiddelde kleurensamenstelling | D17: [kg bruto/jr] | E17: [kg netto/jr] | F17: [%] | G17: [%] | H17: [kg netto/jr] | I17: [kg netto/jr] | J17: [kg netto/jr] | K17: [kg netto/jr] | L17: [kg netto/jr] | M17: [kg netto/jr]
A18: Transparant | B18: 0.6 | C18: wit | D18: =Feed!G86*(100%-Feed!$F$86)*IF(Feed!O28<>0,Feed!O28*1000,Netto!B28*Glass!B18) -> 0 | E18: =D18*(100%-Feed!$H$86) -> 0 | F18: 0.06 | G18: 0 | H18: =E18*(100%-F18) -> 0 | I18: =H18*(100%-G18) -> 0 | J18: =($E$18-$I$18)*J15 -> 0 | K18: =($E$18-$I$18)*K15 -> 0 | L18: =($E$18-$I$18)*L15 -> 0 | M18: =($E$18-$I$18)*M15 -> 0
A19: Groen | B19: 0.3 | C19: bont | D19: =Feed!G86*(100%-Feed!$F$86)*IF(Feed!O29<>0,Feed!O29*1000,Netto!B28*Glass!B19) -> 0 | E19: =D19*(100%-Feed!$H$86) -> 0 | F19: 0.1 | G19: 0.1 | H19: =E19*(100%-F19)*(B19/(B19+B20)) -> 0 | I19: =H19*(100%-G19) -> 0 | J19: =($E$19-$I$19-$I$20)*J15*($B$19/($B$19+$B$20)) -> 0 | K19: =($E$19-$I$19-$I$20)*K15*($B$19/($B$19+$B$20)) -> 0 | L19: =($E$19-$I$19-$I$20)*L15*($B$19/($B$19+$B$20)) -> 0 | M19: =($E$19-$I$19-$I$20)*M15*($B$19/($B$19+$B$20)) -> 0
A20: Bruin | B20: 0.1 | H20: =E19*(100%-F19)*(B20/(B19+B20)) -> 0 | I20: =H20*(100%-G20) -> 0 | J20: =($E$19-$I$20-$I$19)*J15*($B$20/($B$19+$B$20)) -> 0 | K20: =($E$19-$I$20-$I$19)*K15*($B$20/($B$19+$B$20)) -> 0 | L20: =($E$19-$I$20-$I$19)*L15*($B$20/($B$19+$B$20)) -> 0 | M20: =($E$19-$I$20-$I$19)*M15*($B$20/($B$19+$B$20)) -> 0
D21: =SUM(D18:D20) -> 0 | E21: =SUM(E18:E20) -> 0 | I21: =SUM(I18:I20) -> 0 | J21: =SUM(J18:J20) -> 0 | K21: =SUM(K18:K20) -> 0 | L21: =SUM(L18:L20) -> 0 | M21: =SUM(M18:M20) -> 0
A25: Bonte monoinzameling
B26: =Netto!D29 -> 0 | C26: [kg bruto/jr] | D26: =Netto!E29 -> 0 | E26: [kg netto/jr]
J27: 0.5 | K27: 0.2 | L27: 0.1 | M27: 0.2
D28: Feedstock | F28: Alg Sorteerverlies | G28: Kleur sorteerverlies | H28: Verpakkingsglas pot | I28: Verpakkingsglas echt | J28: Glas bijproduct | K28: Steen, mineralen, opvul | L28: Metaal | M28: plasticafval
A29: Gemiddelde kleurensamenstelling | D29: [kg netto/jr] | F29: [%] | G29: [%] | H29: [kg netto/jr] | I29: [kg netto/jr] | J29: [kg netto/jr] | K29: [kg netto/jr] | L29: [kg netto/jr] | M29: [kg netto/jr]
A30: Transparant | B30: 0.6 | D30: =D26 -> 0 | F30: 0.12 | G30: 0.1 | H30: =D30*B30*(100%-F30) -> 0 | I30: =H30*(100%-G30) -> 0 | J30: =$D30*$F30*J$27*$B30 -> 0 | K30: =$D30*$F30*K$27*$B30 -> 0 | L30: =$D30*$F30*L$27*$B30 -> 0 | M30: =$D30*$F30*M$27*$B30 -> 0
A31: Groen | B31: 0.3 | F31: 0.12 | G31: 0.1 | H31: =D30*B31*(100%-F31) -> 0 | I31: =H31*(100%-G31) -> 0 | J31: =$D30*$F31*J$27*$B31 -> 0 | K31: =$D30*$F31*K$27*$B31 -> 0 | L31: =$D30*$F31*L$27*$B31 -> 0 | M31: =$D30*$F31*M$27*$B31 -> 0
A32: Bruin | B32: 0.1 | F32: 0.12 | H32: =D30*B32*(100%-F32) -> 0 | I32: =H30*G30+G31*H31+H32 -> 0 | J32: =$D30*$F32*J$27*$B32 -> 0 | K32: =$D30*$F32*K$27*$B32 -> 0 | L32: =$D30*$F32*L$27*$B32 -> 0 | M32: =$D30*$F32*M$27*$B32 -> 0
I33: =SUM(I30:I32) -> 0 | J33: =SUM(J30:J32) -> 0 | K33: =SUM(K30:K32) -> 0 | L33: =SUM(L30:L32) -> 0 | M33: =SUM(M30:M32) -> 0

Sheet Metal (hidden)
C1: [kg netto/jaar]
A2: Ferro-metalen verpakkingen in het huisvuil | B2: =Feed!B39/(Feed!B39+Feed!B40) -> 0.7484843193 | C2: =Netto!D7*B2 -> 0
A3: Non-Ferro metalen verpakkingen in het huisvuil | B3: =100%-B2 -> 0.2515156807 | C3: =Netto!D7*B3 -> 0 | X3: Uit Rm geschat met 5% verlies
A5: Nascheidingsrendementen uit bodemas, TNO rapport Gijlswijk en Ansems 2014 | C5: [kg netto/jaar] | D5: Verlies | E5: vervolg | P5: Sorteerproducten NF | S5: verdeling | U5: Recovered masses | W5: C(Al) product | X5: C(Al) input | Y5: Al-yield
A6: Fe | B6: 0.961 | C6: =C2*B6 -> 0 | D6: =C2-C6 -> 0 | E6: directe afzet naar een hoogoven, bv Tata | P6: 0-15 mm | S6: 0.25 | U6: 0.675 | W6: 0.95 | X6: =U6+5% -> 0.725 | Y6: =U6*W6/X6 -> 0.8844827586
A7: Non-Fe | B7: 0.641 | C7: =C3*B7 -> 0 | D7: =C3-C7 -> 0 | E7: naar een NF sorteerbedrijf, opwerkbedrijf en dan naar een Aluminiumsmelter | P7: >15mm | Q7: 0.75 | R7: 15-25mm | S7: 0.6 | U7: 0.9 | W7: 0.95 | X7: =U7+5% -> 0.95 | Y7: =U7*W7/X7 -> 0.9
L8: [kg netto/jr] | M8: verlies | R8: >25 mm | S8: 0.15 | U8: 0.8 | W8: 0.95 | X8: =U8+5% -> 0.85 | Y8: =U8*W8/X8 -> 0.8941176471
J9: Terugwinning Dolphin | L9: =C7*95% -> 0 | M9: =C7-L9 -> 0 | S9: gewogen gemiddelde | U9: =S6*U6+S7*U7+S8*U8 -> 0.82875 | Y9: =S6*Y6+S7*Y7+S8*Y8 -> 0.8952383367
J10: Terugwinning Smelterij | L10: =L9*U9 -> 0 | M10: =L9-L10 -> 0
A12: Gescheiden ingezameld | B12: =Feed!B12*1000 -> 0 | C12: [bruto kg/jr]
A13: Schone metaalverpakkingen | B13: =Netto!E30 -> 0 | C13: [netto kg/jr]
A14: > Fe metaalverpakkingen | B14: =B13*B2 -> 0 | C14: [netto kg/jr]
A15: > Al metaalverpakkingen | B15: =B13*B3 -> 0 | C15: [netto kg/jr]
L18: nascheidingsconcentraat Aluminium | P18: Mbegin | Q18: 1000 | R18: kg | S18: Rm tot | T18: =Q24/Q18 -> 0.45
F19: Uit bodemas | G19: uit mono-inzameling | H19: uit PMD | L19: cAl | M19: 0.45 | P19: Mb Al | Q19: =Q18*M19 -> 450 | R19: kg | S19: Rm fijn | T19: =T18*25% -> 0.1125
A20: Marktverdeling Ferrometaal via Tata steel hoogoven, geschat | F20: [kg netto/jr] | P20: Mb rest | Q20: =Q18-Q19 -> 550 | R20: kg | S20: Rm middel | T20: =T18*60% -> 0.27
A21: Construction | B21: 0.5 | C21: 0.5 | F21: =C21*$C$6 -> 0 | G21: =$B$14*C21 -> 0 | H21: =PMD!$N$17*C21 -> 0 | S21: Rm grof | T21: =T18*15% -> 0.0675
A22: Automotive | B22: 0.05 | C22: 0.1 | F22: 0 | G22: 0 | H22: =PMD!$N$17*C22 -> 0 | L22: daaruit maak je een Aluminium sorteerproduct
A23: Packaging | B23: 0.1 | C23: 0.15 | F23: 0 | G23: 0 | H23: =PMD!$N$17*C23 -> 0 | L23: cAl | M23: 0.95 | P23: M Al product | Q23: =Q19-Q27 -> 427.5 | R23: kg | S23: Yield Al | T23: =(M23*Q24)/(Q18*M19) -> 0.95
A24: Rail | B24: 0.2 | C24: 0 | F24: 0 | G24: 0 | H24: =PMD!$N$17*C24 -> 0 | P24: M product totaal | Q24: =Q23/M23 -> 450 | R24: kg
A25: Household appliances -durable goods | B25: 0.05 | C25: 0.1 | F25: 0 | G25: 0 | H25: =PMD!$N$17*C25 -> 0 | P25: M veront in product | Q25: =Q24-Q23 -> 22.5 | R25: kg
A26: Excavating equipment | B26: 0.05 | C26: 0.1 | F26: 0 | G26: 0 | H26: =PMD!$N$17*C26 -> 0
A27: Shipbuilding | B27: 0.05 | C27: 0.05 | F27: 0 | G27: 0 | H27: =PMD!$N$17*C27 -> 0 | L27: Met sorteerverlies | N27: 0.05 | P27: M al verlies | Q27: =Q19*N27 -> 22.5 | R27: kg
B28: =SUM(B21:B27) -> 1 | C28: =SUM(C21:C27) -> 1
A29: Op basis van de producten die Tata maakt en de verwachte geschiktheid van schroot daarin
F30: Uit bodemas | G30: uit mono-inzameling | H30: uit PMD
A31: Marktverdeling aluminium | B31: EAA 2010 | C31: Forest interview | D31: Combinatie | F31: [kg netto/jr]
A32: Construction | B32: 0.25 | C32: 0 | D32: 0 | F32: =$L$10*D32 -> 0 | G32: =$B$15*D32 -> 0 | H32: =PMD!$N$18*D32 -> 0
A33: Transport | B33: 0.37 | C33: 0.9 | D33: 0.75 | F33: 0 | G33: 0 | H33: =PMD!$N$18*D33 -> 0
A34: Packaging | B34: 0.17 | C34: 0 | D34: 0 | F34: 0 | G34: 0 | H34: =PMD!$N$18*D34 -> 0
A35: Machines | B35: 0.14 | C35: 0 | D35: 0.1 | F35: 0 | G35: 0 | H35: =PMD!$N$18*D35 -> 0
A36: Misc. | B36: 0.07 | C36: 0 | D36: 0.05 | F36: 0 | G36: 0 | H36: =PMD!$N$18*D36 -> 0
A37: Desox | C37: 0.1 | D37: 0.1 | F37: 0 | G37: 0 | H37: =PMD!$N$18*D37 -> 0

Sheet Plastics (hidden)
A1: Gescheiden ingezamelde netto-hoeveelheden KST VERP | Z1: Nascheiden KST | AB1: aandeel gemeente
A2: mono-inzameling | B2: =Netto!B24 -> 0 | C2: [kg bruto/jaar] | D2: =Netto!E24 -> 0 | E2: [kg netto/jr] | F2: PMD bruto | G2: =Feed!C13*1000 -> 0 | H2: [kg br/jr] | AA2: Logische operator | AB2: potentie | AC2: Productie namens gemeente, [ton/jaar]
A3: PMD-inzameling | B3: =Netto!B25 -> 0 | C3: [kg bruto/jaar] | D3: =Netto!E25 -> 0 | E3: [kg netto/jr] | F3: netto/bruto | G3: =IF(B3=0, 0,D3/B3) -> 0 | Z3: Nascheiden | AA3: =Feed!B77 -> 0 | AB3: [kg bruto] | AE3: PET fles | AF3: PET trays | AG3: PE | AH3: PP | AI3: Film | AJ3: MP
A4: PD-inzameling | B4: =Netto!B26 -> 0 | C4: [kg bruto/jaar] | D4: =Netto!E26 -> 0 | E4: [kg netto/jr] | F4: Bron PMD model | Z4: Omrin | AA4: =Feed!B78 -> 0 | AB4: =Netto!B5*data!B49 -> 0 | AC4: =AA4*AB4/1000 -> 0 | AE4: =AC4*AD11 -> 0 | AF4: =AC4*AD12 -> 0 | AG4: =AC4*AD13 -> 0 | AH4: =AC4*AD14 -> 0 | AI4: =AC4*AD15 -> 0 | AJ4: =AC4*AD16 -> 0
A5: Sorteerdata 2014 | B5: Sorteren gescheiden ingezamelde kunststofverpakkingen | F5: Sorteerdata 2017 | G5: tov totaal ingezameld gewicht | L5: Data mech recyclen | M5: Mechanisch recyclen van gescheiden ingezamelde kunststofverpakkingen | Z5: Attero-Noord | AA5: =Feed!B79 -> 0 | AB5: =Netto!B5*data!D49 -> 0 | AC5: =AA5*AB5/1000 -> 0 | AE5: =AC5*AE11 -> 0 | AF5: =AC5*AE12 -> 0 | AG5: =AC5*AE13 -> 0 | AH5: =AC5*AE14 -> 0 | AI5: =AC5*AE15 -> 0 | AJ5: =AC5*AE16 -> 0
B6: Rm,[%] | C6: cinput,[%] | F6: 2017 | G6: Rm, [%] | H6: Rm-norm PMD | I6: Rm-norm PD | M6: Rm float,[%] | N6: Rm sink,[%] | O6: Rm sludge, [%] | P6: Rm dis matter, [%] | Q6: c intended plastic sorting product,[%] | R6: Recycling opbrengst, [%] | Z6: Attero-Wijster | AA6: =Feed!B80 -> 0 | AB6: =Netto!B5*data!E49 -> 0 | AC6: =AA6*AB6/1000 -> 0 | AE6: =AC6*AE11 -> 0 | AF6: =AC6*AE12 -> 0 | AG6: =AC6*AE13 -> 0 | AH6: =AC6*AE14 -> 0 | AI6: =AC6*AE15 -> 0 | AJ6: =AC6*AE16 -> 0
A7: PET fles | B7: 0.07 | C7: 0.09 | F7: PET fles | G7: 0.05514135777 | H7: =IF(Feed!$B$63=0,Plastics!G7,(Feed!$B$65/Feed!$G$65)*Plastics!G7) -> 0.05514135777 | L7: PET | M7: 0.11 | N7: 0.83 | O7: 0.03 | P7: 0.03 | Q7: 0.94 | R7: 0.88 | Z7: HVC | AA7: =Feed!B81 -> 0 | AB7: =Netto!B5*data!F49 -> 0 | AC7: =AA7*AB7/1000 -> 0 | AE7: =AC7*AF11 -> 0 | AF7: =AC7*AF12 -> 0 | AG7: =AC7*AF13 -> 0 | AH7: =AC7*AF14 -> 0 | AI7: =AC7*AF15 -> 0 | AJ7: =AC7*AF16 -> 0
A8: PET schaal | B8: 0.08 | C8: 0.11 | F8: PET tray | G8: 0.07085124807 | H8: =IF(Feed!$B$63=0,Plastics!G8,(Feed!$B$65/Feed!$G$65)*Plastics!G8) -> 0.07085124807 | L8: PET trays | M8: 0.09 | N8: 0.85 | O8: 0.02 | P8: 0.04 | AD8: Totaal | AE8: =SUM(AE4:AE7) -> 0 | AF8: =SUM(AF4:AF7) -> 0 | AG8: 0 | AH8: 0 | AI8: 0 | AJ8: 0
A9: PE | B9: 0.08 | C9: 0.11 | F9: PE | G9: 0.05086091376 | H9: =IF(Feed!$B$63=0,Plastics!G9,(Feed!$B$65/Feed!$G$65)*Plastics!G9) -> 0.05086091376 | L9: PE | M9: 0.94 | N9: 0.03 | O9: 0.008 | P9: 0.022 | Z9: Sorteerverdeling zonder rest | AB9: Attero | AD9: Bron: PMD model
A10: PP | B10: 0.1 | C10: 0.13 | F10: PP | G10: 0.06546192576 | H10: =IF(Feed!$B$63=0,Plastics!G10,(Feed!$B$65/Feed!$G$65)*Plastics!G10) -> 0.06546192576 | L10: PP | M10: 0.9 | N10: 0.07 | O10: 0.007 | P10: 0.023 | AA10: Omrin 2015 | AB10: Nanabron Wijster 2013 | AD10: Omrin 2017 | AE10: Attero 2017 | AF10: HVC
A11: Film | B11: 0.21 | C11: 0.31 | F11: Film | G11: 0.1041517503 | H11: =IF(Feed!$B$63=0,Plastics!G11,(Feed!$B$65/Feed!$G$65)*Plastics!G11) -> 0.1041517503 | L11: Film | M11: 0.9 | N11: 0.04 | O11: 0.008 | P11: 0.052 | Z11: PET, DKR 328-1 | AA11: 0.062 | AB11: 0.08688406568 | AD11: 0.07570343904 | AE11: 0.08842222374 | AF11: 0.04693140794
A12: MP | B12: 0.31 | C12: 0.13 | F12: MP | G12: 0.2614557772 | H12: =IF(Feed!$B$63=0,Plastics!G12,(Feed!$B$65/Feed!$G$65)*Plastics!G12) -> 0.2614557772 | L12: MP | M12: 0.64 | N12: 0.32 | O12: 0.007 | P12: 0.033 | Z12: PET trays | AD12: 0.1482804824 | AE12: 0.06666824186 | AF12: 0.1101083032
A13: Rest | B13: 0.15 | C13: 0.12 | F13: DK | G13: 0.078387397 | H13: =IF(Feed!$B$63=0,Plastics!G13,(Feed!$B$67/Feed!$G$67)*Plastics!G13) -> 0.078387397 | Z13: PE, DKR 329 | AA13: 0.118 | AB13: 0.1062931691 | AD13: 0.06252791425 | AE13: 0.08326405407 | AF13: 0.0385078219
F14: Metalen | G14: 0.0721 | H14: =IF(Feed!$B$63=0,Plastics!G14,(Feed!$B$66/Feed!$G$66)*Plastics!G14) -> 0.0721 | Z14: PP, DKR 324 | AA14: 0.11 | AB14: 0.1739874433 | AD14: 0.130787554 | AE14: 0.1345318793 | AF14: 0.09145607702
F15: Rest | G15: =100%-SUM(G7:G14) -> 0.2415896302 | H15: =100%-SUM(H7:H14) -> 0.2415896302 | Z15: Film, DKR 310 | AA15: 0.465 | AB15: 0.2800081596 | AD15: 0.1035432485 | AE15: 0.3642397629 | AF15: 0.444645006
Z16: Mix, DKR 350 | AA16: 0.245 | AB16: 0.3528271624 | AD16: 0.4791573619 | AE16: 0.2628738382 | AF16: 0.2683513839
A17: Berekening sorteren | B17: Hoeveelheid gewenste kunststof in de input | E17: Hoeveelheid uitgesorteerd product | L17: Berekening mech recyclen | M17: M drijvend maalgoed | P17: M zinkend maalgoed | S17: Afval | V17: Opgeloste stof
B18: MONO | C18: PMD | D18: PD | E18: Mono | F18: Mono | G18: PMD | H18: PMD | I18: PD | J18: PD | M18: Mono | N18: PMD | O18: PD | P18: Mono | Q18: PMD | R18: PD | S18: Mono | T18: PMD | U18: PD | V18: Mono | W18: PMD | X18: PD | Z18: Data mech recyclen | AA18: Mechanisch recyclen van nagescheiden kunststofverpakkingen
B19: [kg bruto/jaar] | C19: [kg bruto/jaar] | D19: [kg bruto/jaar] | E19: [kg bruto/jaar] | F19: [kg netto/jaar] | G19: [kg bruto/jaar] | H19: [kg netto/jaar] | I19: [kg bruto/jaar] | J19: [kg netto/jaar] | M19: [kg netto/jaar] | P19: [kg maalgoed/jaar] | S19: [kg netto/jr] | V19: [kg netto/jr] | AA19: Rm float,[%] | AB19: Rm sink,[%] | AC19: Rm sludge, [%] | AD19: Rm dis matter, [%] | AE19: c intended plastic sorting product,[%] | AF19: Recycling opbrengst, [%]
A20: PET | B20: =B2*C7 -> 0 | C20: =B7*B3 -> 0 | D20: =B4*B7 -> 0 | E20: =$B$2*B7 -> 0 | F20: =$D$2*B7 -> 0 | G20: =$G$2*H7 -> 0 | H20: =G20*$G$3 -> 0 | I20: =$B$4*B7 -> 0 | J20: =$D$4*B7 -> 0 | L20: PET | M20: =F20*M7 -> 0 | N20: =H20*M7 -> 0 | O20: =J20*M7 -> 0 | P20: =F20*N7 -> 0 | Q20: =H20*N7 -> 0 | R20: =J20*N7 -> 0 | S20: =F20*O7 -> 0 | T20: =H20*O7 -> 0 | U20: =J20*O7 -> 0 | V20: =F20*P7 -> 0 | W20: =H20*P7 -> 0 | X20: =J20*P7 -> 0 | Z20: PET | AA20: 0.1 | AB20: 0.84 | AC20: 0.03 | AD20: 0.03
A21: PET trays | B21: =B1*C8 -> 0 | G21: 0 | H21: 0 | I21: 0 | J21: 0 | L21: PET trays | M21: 0 | N21: 0 | O21: 0 | P21: 0 | Q21: 0 | R21: 0 | S21: 0 | T21: 0 | U21: 0 | V21: 0 | W21: 0 | X21: 0 | Z21: PET trays | AA21: 0.14 | AB21: 0.68 | AC21: 0.06 | AD21: 0.12
A22: PE | B22: =B2*C9 -> 0 | C22: =B9*B3 -> 0 | D22: =B4*B9 -> 0 | E22: =$B$2*B9 -> 0 | F22: =$D$2*B9 -> 0 | G22: 0 | H22: 0 | I22: 0 | J22: 0 | L22: PE | M22: 0 | N22: 0 | O22: 0 | P22: 0 | Q22: 0 | R22: 0 | S22: 0 | T22: 0 | U22: 0 | V22: 0 | W22: 0 | X22: 0 | Z22: PE | AA22: 0.93 | AB22: 0.02 | AC22: 0.02 | AD22: 0.03
A23: PP | B23: =B2*C10 -> 0 | C23: =B3*B10 -> 0 | D23: =B4*B10 -> 0 | E23: =$B$2*B10 -> 0 | F23: =$D$2*B10 -> 0 | G23: 0 | H23: 0 | I23: 0 | J23: 0 | L23: PP | M23: 0 | N23: 0 | O23: 0 | P23: 0 | Q23: 0 | R23: 0 | S23: 0 | T23: 0 | U23: 0 | V23: 0 | W23: 0 | X23: 0 | Z23: PP | AA23: 0.83 | AB23: 0.03 | AC23: 0.06 | AD23: 0.08
A24: Film | B24: =B2*C11 -> 0 | C24: =B3*B11 -> 0 | D24: =B4*B11 -> 0 | E24: =$B$2*B11 -> 0 | F24: =$D$2*B11 -> 0 | G24: 0 | H24: 0 | I24: 0 | J24: 0 | L24: Film | M24: 0 | N24: 0 | O24: 0 | P24: 0 | Q24: 0 | R24: 0 | S24: 0 | T24: 0 | U24: 0 | V24: 0 | W24: 0 | X24: 0 | Z24: Film | AA24: 0.83 | AB24: 0.04 | AC24: 0.03 | AD24: 0.1
A25: MP | B25: =B2*C12 -> 0 | C25: =B3*B12 -> 0 | D25: =B4*B12 -> 0 | E25: =$B$2*B12 -> 0 | F25: =$D$2*B12 -> 0 | G25: 0 | H25: 0 | I25: 0 | J25: 0 | L25: MP | M25: 0 | N25: 0 | O25: 0 | P25: 0 | Q25: 0 | R25: 0 | S25: 0 | T25: 0 | U25: 0 | V25: 0 | W25: 0 | X25: 0 | Z25: MP | AA25: 0.65 | AB25: 0.28 | AC25: 0.04 | AD25: 0.03
A26: TOTAAL | B26: =SUM(B20:B25) -> 0 | C26: 0 | D26: 0 | E26: 0 | F26: 0 | G26: 0 | H26: 0 | I26: 0 | J26: 0 | L26: TOTAAL | M26: =SUM(M20:M25) -> 0 | N26: 0 | O26: 0 | P26: 0 | Q26: 0 | R26: 0 | S26: 0 | T26: 0 | U26: 0 | V26: 0 | W26: 0 | X26: 0
Z28: Berekening mech recyclen | AA28: Hoeveelheid drijvend maalgoed | AE28: Hoeveelheid zinkend maalgoed | AH28: Afval | AI28: Opgeloste stof
AA29: [kg netto/jaar] | AE29: [kg maalgoed/jaar] | AH29: [kg netto/jr] | AI29: [kg netto/jr]
A30: Geschatte marktverdelingen voor kunststofhergebruik | Z30: PET fles | AA30: =AA20*$AE$8*1000 -> 0 | AE30: =AB20*$AE$8*1000 -> 0 | AH30: =AC20*$AE$8*1000 -> 0 | AI30: =AD20*$AE$8*1000 -> 0
Z31: PET schaal | AA31: =AF8*AA21*1000 -> 0 | AE31: =AF8*AB21*1000 -> 0 | AH31: =AF8*AC21*1000 -> 0 | AI31: =AD21*AF8*1000 -> 0
A32: PET fles | B32: GI, [%] | C32: NA, [%] | E32: PE | F32: GI, [%] | G32: NA, [%] | I32: PP | J32: GI, [%] | K32: NA, [%] | M32: Folie | N32: GI, [%] | O32: NA, [%] | Q32: MP | R32: GI, [%] | S32: NA, [%] | U32: PET trays | V32: GI, [%] | W32: NA, [%] | Z32: PE | AA32: =AA22*AG8*1000 -> 0 | AE32: =AB22*AG8*1000 -> 0 | AH32: =AC22*AG8*1000 -> 0 | AI32: =AD22*AG8*1000 -> 0
A33: Flessen | B33: 0.1 | C33: 0 | E33: Kabelomhulling | F33: 0.2 | G33: 0.3 | I33: Bloempotten | J33: 0.5 | K33: 0.6 | M33: Tuinmeubelen | N33: 0.1 | O33: 0.1 | Q33: Speeltoestellen | R33: 0.1 | S33: 0.1 | U33: Trays | V33: 0.9 | W33: 0.9 | Z33: PP | AA33: =AA23*AH8*1000 -> 0 | AE33: =AB23*AH8*1000 -> 0 | AH33: =AC23*AH8*1000 -> 0 | AI33: =AD23*AH8*1000 -> 0
A34: Trays | B34: 0.6 | C34: 0.6 | E34: Afvoerpijpen | F34: 0.3 | G34: 0.3 | I34: Kratten | J34: 0.2 | K34: 0.2 | M34: Afvoerpijpen | N34: 0.4 | O34: 0.5 | Q34: Verkeersafscheiders | R34: 0.1 | S34: 0.1 | U34: Strapping | V34: 0.1 | W34: 0.1 | Z34: Film | AA34: =AA24*AI8*1000 -> 0 | AE34: =AB24*AI8*1000 -> 0 | AH34: =AC24*AI8*1000 -> 0 | AI34: =AD24*AI8*1000 -> 0
A35: Fleece | B35: 0.1 | C35: 0.1 | E35: Rolkernen | F35: 0.2 | G35: 0.2 | I35: Boombekisting | J35: 0.15 | K35: 0.2 | M35: Rijplaten | N35: 0.4 | O35: 0.2 | Q35: Oeverbeschoeiing | R35: 0.1 | S35: 0.1 | Z35: MP | AA35: =AA25*AJ8*1000 -> 0 | AE35: =AB25*AJ8*1000 -> 0 | AH35: =AC25*AJ8*1000 -> 0 | AI35: =AD25*AJ8*1000 -> 0
A36: Strapping | B36: 0.2 | C36: 0.3 | E36: Rijplaten | F36: 0.2 | I36: Apparaatbehuizing | J36: 0.05 | K36: 0 | M36: Speeltoestellen | N36: 0.1 | O36: 0.2 | Q36: Steigers plastic lumber | R36: 0.3 | S36: 0.5 | Z36: TOTAAL | AA36: =SUM(AA30:AA35) -> 0 | AE36: =SUM(AE30:AE35) -> 0 | AH36: =SUM(AH30:AH35) -> 0 | AI36: =SUM(AI30:AI35) -> 0
E37: Afvalcontainers | F37: 0.09 | G37: 0.2 | I37: Pallets | J37: 0.1 | Q37: Pallets | R37: 0.2 | S37: 0.2 | Z37: De nascheidingsberekening is gedaan op basis van het percentage kunststof (verpakkingen + niet-verpakkingen)
E38: Non-food flacons | F38: 0.01 | G38: 0 | Q38: Bouwemmers, speciekuipen | R38: 0.2 | Z38: Dus om terug te rekenen naar alleen verpakkingen moet er worden gecorrigeerd, hiervoor nemen we het gehalte in gescheiden ingezamelde verpakkingen want dit scheelt niet veel.
A39: PO-mix uit PET als drijvend bijproduct | Z39: Correctiefactor verpakkingen | AB39: =data!B28 -> 0.89
B40: GI, [%] | C40: NA, [%] | E40: PE-zink | I40: PP-zink | M40: Folie-zink | Q40: Zinkend bijproduct uit MP
A41: Plastic lumber | B41: 1 | C41: 1 | E41: Brandstof | F41: 1 | I41: Brandstof | J41: 1 | M41: Brandstof | N41: 1 | R41: GI, [%] | S41: NA, [%]
Q42: Asfalttoeslagstof | R42: 1 | S42: 1
A43: Namens deze gemeente hergebruikte artikelen uit mono-inzameling | I43: Namens deze gemeente hergebruikte artikelen uit PMD-inzameling | Q43: Namens deze gemeente hergebruikte artikelen uit PD-inzameling | Z43: Namens deze gemeente hergebruikte artikelen | AA43: Alleen verpakkingen | AB43: Verpakkingen en niet-verpakkingen
B44: Materiaalhergebruik | C44: Nuttige toepassing | E44: Materiaalhergebruik | J44: Materiaalhergebruik | K44: Nuttige toepassing | M44: Materiaalhergebruik | R44: Materiaalhergebruik | S44: Nuttige toepassing | U44: Materiaalhergebruik | AA44: Materiaalhergebruik | AB44: Materiaalhergebruik | AC44: Nuttige toepassing | AE44: Materiaalhergebruik
A45: Toepassingen | B45: [kg netto/jr] | C45: [kg netto/jr] | E45: [kg net/cap.a] | I45: Toepassingen | J45: [kg netto/jr] | K45: [kg netto/jr] | M45: [kg net/cap.a] | Q45: Toepassingen | R45: [kg netto/jr] | S45: [kg netto/jr] | U45: [kg net/cap.a] | Z45: Toepassingen | AA45: [kg netto/jr] | AB45: [kg netto/jr] | AC45: [kg netto/jr] | AE45: [kg net/cap.a]
A46: Flessen | B46: =B33*$P$20 -> 0 | E46: =B46/Feed!$B$2 ->  | G46: PET bottles | J46: =B33*$Q$20 -> 0 | M46: =J46/Feed!$B$2 ->  | R46: =B33*$R$20 -> 0 | U46: =R46/Feed!$B$2 ->  | Z46: =A46 -> Flessen | AA46: =$AB$39*AB46 -> 0 | AB46: =$AE$30*C33 -> 0
A47: Trays | B47: =B34*$P$20+P21*V33 -> 0 | E47: =B47/Feed!$B$2 ->  | G47: PET trays | J47: =B34*$Q$20+V33*Q21 -> 0 | M47: =J47/Feed!$B$2 ->  | R47: =B34*$R$20+R21*V33 -> 0 | U47: =R47/Feed!$B$2 ->  | Z47: Trays | AA47: 0 | AB47: =$AE$30*C34+AE31*W33 -> 0
A48: Fleece | B48: =B35*$P$20 -> 0 | E48: =B48/Feed!$B$2 ->  | G48: PET fibres | J48: =B35*$Q$20 -> 0 | M48: =J48/Feed!$B$2 ->  | R48: =B35*$R$20 -> 0 | U48: =R48/Feed!$B$2 ->  | Z48: Fleece | AA48: 0 | AB48: =$AE$30*C35 -> 0
A49: Strapping | B49: =B36*$P$20+P21*V34 -> 0 | E49: =B49/Feed!$B$2 ->  | G49: PET strapping | J49: =B36*$Q$20+Q21*V34 -> 0 | M49: =J49/Feed!$B$2 ->  | R49: =B36*$R$20+R21*V34 -> 0 | U49: =R49/Feed!$B$2 ->  | Z49: Strapping | AA49: 0 | AB49: =$AE$30*C36+W34*AE31 -> 0
A50: =E33 -> Kabelomhulling | B50: =F33*$M$22 -> 0 | E50: =B50/Feed!$B$2 ->  | G50: Cable liner | J50: =F33*$N$22 -> 0 | M50: =J50/Feed!$B$2 ->  | R50: =F33*$O$22 -> 0 | U50: =R50/Feed!$B$2 ->  | Z50: Kabelomhulling | AA50: 0 | AB50: =$AA$32*G33 -> 0
A51: Afvoerpijpen | B51: =F34*$M$22+$M$24*N34 -> 0 | E51: =B51/Feed!$B$2 ->  | G51: Drainage pipes | J51: =F34*$N$22+$N$24*N34 -> 0 | M51: =J51/Feed!$B$2 ->  | R51: =F34*$O$22+$O$24*N34 -> 0 | U51: =R51/Feed!$B$2 ->  | Z51: Afvoerpijpen | AA51: 0 | AB51: =$AA$32*G34+AA34*O34 -> 0
A52: Rolkernen | B52: =F35*$M$22 -> 0 | E52: =B52/Feed!$B$2 ->  | G52: Roll tubes | J52: =F35*$N$22 -> 0 | M52: =J52/Feed!$B$2 ->  | R52: =F35*$O$22 -> 0 | U52: =R52/Feed!$B$2 ->  | Z52: Rolkernen | AA52: 0 | AB52: =$AA$32*G35 -> 0
A53: Rijplaten | B53: =$M$24*N35+F36*$M$22 -> 0 | E53: =B53/Feed!$B$2 ->  | G53: Road plates | J53: =$N$24*N35+F36*$N$22 -> 0 | M53: =J53/Feed!$B$2 ->  | R53: =$O$24*N35+F36*$O$22 -> 0 | U53: =R53/Feed!$B$2 ->  | Z53: Rijplaten | AA53: 0 | AB53: =$AA$32*G36+AA34*O35 -> 0
A54: Afvalcontainers | B54: =F37*$M$22 -> 0 | E54: =B54/Feed!$B$2 ->  | G54: Waste containers | J54: =F37*$N$22 -> 0 | M54: =J54/Feed!$B$2 ->  | R54: =F37*$O$22 -> 0 | U54: =R54/Feed!$B$2 ->  | Z54: Afvalcontainers | AA54: 0 | AB54: =$AA$32*G37 -> 0
A55: Non-food flacons | B55: =F38*$M$22 -> 0 | E55: =B55/Feed!$B$2 ->  | G55: Non-food bottles | J55: =F38*$N$22 -> 0 | M55: =J55/Feed!$B$2 ->  | R55: =F38*$O$22 -> 0 | U55: =R55/Feed!$B$2 ->  | Z55: Non-food flacons | AA55: 0 | AB55: =$AA$32*G38 -> 0
A56: =I33 -> Bloempotten | B56: =$M$23*J33 -> 0 | E56: =B56/Feed!$B$2 ->  | G56: Flower trays | J56: =$N$23*J33 -> 0 | M56: =J56/Feed!$B$2 ->  | R56: =$O$23*J33 -> 0 | U56: =R56/Feed!$B$2 ->  | Z56: Bloempotten | AA56: 0 | AB56: =$AA$33*K33 -> 0
A57: =I34 -> Kratten | B57: =$M$23*J34 -> 0 | E57: =B57/Feed!$B$2 ->  | G57: Crates | J57: =$N$23*J34 -> 0 | M57: =J57/Feed!$B$2 ->  | R57: =$O$23*J34 -> 0 | U57: =R57/Feed!$B$2 ->  | Z57: Kratten | AA57: 0 | AB57: =$AA$33*K34 -> 0
A58: =I35 -> Boombekisting | B58: =$M$23*J35 -> 0 | E58: =B58/Feed!$B$2 ->  | G58: Tree crates | J58: =$N$23*J35 -> 0 | M58: =J58/Feed!$B$2 ->  | R58: =$O$23*J35 -> 0 | U58: =R58/Feed!$B$2 ->  | Z58: Boombekisting | AA58: 0 | AB58: =$AA$33*K35 -> 0
A59: =I36 -> Apparaatbehuizing | B59: =$M$23*J36 -> 0 | E59: =B59/Feed!$B$2 ->  | G59: Appliances | J59: =$N$23*J36 -> 0 | M59: =J59/Feed!$B$2 ->  | R59: =$O$23*J36 -> 0 | U59: =R59/Feed!$B$2 ->  | Z59: Apparaatbehuizing | AA59: 0 | AB59: =$AA$33*K36 -> 0
A60: =I37 -> Pallets | B60: =$M$23*J37+R37*$M$25 -> 0 | E60: =B60/Feed!$B$2 ->  | G60: Pallets | J60: =$N$23*J37+R37*$N$25 -> 0 | M60: =J60/Feed!$B$2 ->  | R60: =$O$23*J37+R37*$O$25 -> 0 | U60: =R60/Feed!$B$2 ->  | Z60: Pallets | AA60: 0 | AB60: =$AA$33*K37+S37*AA35 -> 0
A61: =M33 -> Tuinmeubelen | B61: =$M$24*N33 -> 0 | E61: =B61/Feed!$B$2 ->  | G61: Garden furniture | J61: =$N$24*N33 -> 0 | M61: =J61/Feed!$B$2 ->  | R61: =$O$24*N33 -> 0 | U61: =R61/Feed!$B$2 ->  | Z61: Tuinmeubelen | AA61: 0 | AB61: =AA34*O33 -> 0
A62: =M36 -> Speeltoestellen | B62: =$M$24*N36+R33*M25 -> 0 | E62: =B62/Feed!$B$2 ->  | G62: Play sets | J62: =$N$24*N36+R33*N25 -> 0 | M62: =J62/Feed!$B$2 ->  | R62: =$O$24*N36+R33*O25 -> 0 | U62: =R62/Feed!$B$2 ->  | Z62: Speeltoestellen | AA62: 0 | AB62: =O36*AA34+S33*AA35 -> 0
A63: =Q34 -> Verkeersafscheiders | B63: =R34*$M$25 -> 0 | E63: =B63/Feed!$B$2 ->  | G63: Traffic dividers | J63: =R34*$N$25 -> 0 | M63: =J63/Feed!$B$2 ->  | R63: =R34*$O$25 -> 0 | U63: =R63/Feed!$B$2 ->  | Z63: Verkeersafscheiders | AA63: 0 | AB63: =$AA$35*S34 -> 0
A64: =Q35 -> Oeverbeschoeiing | B64: =R35*$M$25 -> 0 | E64: =B64/Feed!$B$2 ->  | G64: Embankment | J64: =R35*$N$25 -> 0 | M64: =J64/Feed!$B$2 ->  | R64: =R35*$O$25 -> 0 | U64: =R64/Feed!$B$2 ->  | Z64: Oeverbeschoeiing | AA64: 0 | AB64: =$AA$35*S35 -> 0
A65: =Q36 -> Steigers plastic lumber | B65: =R36*$M$25+M20*B41 -> 0 | E65: =B65/Feed!$B$2 ->  | G65: Plastic lumber | J65: =R36*$N$25+N20*B41 -> 0 | M65: =J65/Feed!$B$2 ->  | R65: =R36*$O$25+O20*B41 -> 0 | U65: =R65/Feed!$B$2 ->  | Z65: Steigers plastic lumber | AA65: 0 | AB65: =$AA$35*S36+AA30*C41 -> 0
A66: =Q38 -> Bouwemmers, speciekuipen | B66: =R38*$M$25 -> 0 | E66: =B66/Feed!$B$2 ->  | G66: Mortar tubs | J66: =R38*$N$25 -> 0 | M66: =J66/Feed!$B$2 ->  | R66: =R38*$O$25 -> 0 | U66: =R66/Feed!$B$2 ->  | Z66: Bouwemmers, speciekuipen | AA66: 0 | AB66: =AA35*S38 -> 0
A67: Asfalttoeslagstof | C67: =R42*P25 -> 0 | E67: =B67/Feed!$B$2 ->  | I67: Asfalttoeslagstof | K67: =R42*Q25 -> 0 | Q67: Asfalttoeslagstof | S67: =R42*R25 -> 0 | Z67: Asfalttoeslagstof | AC67: =AE35*S42 -> 0
A68: Brandstof | C68: =F41*P22+J41*P23+N41*P24 -> 0 | E68: =B68/Feed!$B$2 ->  | I68: Brandstof | K68: =F41*Q22+J41*Q23+N41*Q24 -> 0 | Q68: Brandstof | S68: =F41*R22+J41*R23+N41*R24 -> 0 | Z68: Brandstof | AC68: =AE32*F41+AE33*J41+AE34*N41 -> 0
A71: Totaal | B71: =SUM(B46:B68) -> 0 | C71: =SUM(C46:C68) -> 0 | E71: =SUM(E46:E68) ->  | I71: Totaal | J71: =SUM(J46:J68) -> 0 | K71: =SUM(K46:K68) -> 0 | M71: =SUM(M46:M68) ->  | Q71: Totaal | R71: =SUM(R46:R68) -> 0 | S71: =SUM(S46:S68) -> 0 | U71: =SUM(U46:U68) ->  | Z71: =A71 -> Totaal | AA71: =SUM(AA46:AA70) -> 0 | AB71: =SUM(AB46:AB70) -> 0 | AC71: =SUM(AC46:AC70) -> 0

Sheet BC (hidden)
A1: Logische functie gescheiden inzameling | C1: =Feed!B11 -> 0
A2: Logische functie PMD | C2: =IF(Invullen!C19="",0,Invullen!C19) -> 0 | K2: Bij berekening eerst een check of men zelf weet wat de samenstelling van het gescheiden ingezamelde DK-materiaal is in materiaalsoorten.
K3: Zo nee, dan de default kiezen
L4: Zelf invoeren | M4: Default | N4: Default | O4: Default | P4: Default
B5: Tabel met opbrengsten uit het concise report | K5: Invulscherm | L5: bruto-% | M5: mono | N5: PD | O5: PMD | P5: Na K+DK
C6: Separate collection | D6: Co-coll. w/plastic | E6: Co-coll. w/plastic | F6: Co-coll. w/P&B | G6: Recovery | H6: Recovery | K6: Drankenkartons | M6: =SUM(C18:C24) -> 0.8702031735 | N6: =SUM(D18:D24) -> 0.1738738715 | O6: 0.19 | P6: =SUM(E18:E24) -> 0.2328405134
D7: KH | E7: MZ | G7: Attero | H7: Omrin | K7: Kunststofverpakkingen | M7: =C26*(100%-C33) -> 0.02047524263 | N7: =D26*(100%-D33) -> 0.5964105531 | O7: 0.51 | P7: =E26*(100%-E33) -> 0.4376702906
B8: Collecting* | C8: 0.2 | D8: 0.31 | E8: 0.99 | F8: 0.28 | G8: 100% α | H8: 100%α | I8: ηc. | K8: Metaalverpakkingen | M8: =C29*(100%-C34) -> 0.002600811008 | N8: =D29*(100%-D34) -> 0.009387482405 | O8: 0.14 | P8: =E29*(100%-E34) -> 0.009224253263
B9: Recovering | C9: na | D9: na | E9: na | F9: na | G9: 0.87 | H9: 0.79 | I9: ηr. | K9: Oud-papier en karton | M9: =C25 -> 0.08184549963 | N9: =D25 -> 0.08299731788 | O9: 0.055 | P9: =E25 -> 0.1025288796
B10: Sorting | C10: na | D10: 0.39 | E10: 0.55 | F10: ~50% | G10: 0.51 | H10: 80%β | I10: ηs. | K10: Glas | M10: =C30 -> 0.0057723974 | N10: =D30 -> 0.001128313876 | O10: 0.005 | P10: =E30 -> 0.0002303911035
B11: Recycling fibres | C11: 0.8 | D11: 0.9 | E11: 0.85 | F11: ~85% | G11: 0.86 | H11: 0.99 | I11: ηf | K11: Textiel | M11: =C28 -> 0.0007256158247 | N11: =D28 -> 0.01214361352 | O11: 0.01 | P11: =E28 -> 0.05619129597
B12: Recycling by-products | C12: 0.95 | D12: 0.89 | E12: 0.95 | F12: 0.95 | G12: 0.9 | H12: 0.93 | I12: ηb | K12: Metaal niet-verpakkingen | M12: =C29*C34 -> 0.0009137984624 | N12: =D29*D34 -> 0.003298304629 | O12: 0.01 | P12: =E29*E34 -> 0.003240953849
B13: TOTAL fibres | C13: 16±23% | D13: 11±55% | E13: 46±20% | F13: 11±29% | G13: 38±27% | H13: 63±26% | I13: ηc*ηr*ηs*ηf | K13: Kunststof niet-verpakkingen | M13: =C26*C33 -> 0.002275026959 | N13: =D26*D33 -> 0.08833175816 | O13: 0.05 | P13: =E26*E33 -> 0.04594329017
B14: TOTAL by-products | C14: 0.19 | D14: 0.11 | E14: 0.52 | F14: 0.13 | G14: 0.4 | H14: 0.59 | I14: ηc*ηr*ηs*ηb | K14: Organisch en ondefinieerbaar | M14: =C27 -> 0.01518843455 | N14: =D27 -> 0.03242878487 | O14: 0.03 | P14: =BC!E27 -> 0.112130132
K15: Totaal | M15: =SUM(M6:M14) -> 1 | N15: =SUM(N6:N14) -> 1 | O15: =SUM(O6:O14) -> 1 | P15: =SUM(P6:P14) -> 1
B17: Gemiddelde materiaalsamenstelling drankenkartonstromen bij pilot drankenkartons | C17: Gescheiden inzameling | D17: Kunststof+DK inzameling | E17: nascheiding HK+DK
B18: Karton | C18: 0.4266106843 | D18: 0.0909851519 | E18: 0.1066016458 | K18: Dan kiezen uit inzamelsysteem
B19: Alu. | C19: 0.01134082124 | D19: 0.002839798443 | E19: 0.003344458389 | K19: Vermenigvuldig samenstelling drankenkartons netto met vezelrendement en je hebt de vezelopbrengst
B20: PE-folie | C20: 0.08929670417 | D20: 0.01958177998 | E20: 0.02281470808 | K20: Vermenigvuldig samenstelling drankenkartons netto met bijproductrendement en je hebt de hoeveelheid bijproducten
B21: PE VV | C21: 0.03678846678 | D21: 0.007650312612 | E21: 0.009042964482
B22: PP VV | C22: 0.006700752732 | D22: 0.001530824015 | E22: 0.001732941681
B23: PP folie | C23: 8.531415248e-05 | D23: 3.797839167e-05 | E23: 7.229085158e-05
B24: vocht en vuil | C24: 0.2993804302 | D24: 0.05124802617 | E24: 0.08923150411 | K24: FKN uit co-inzameling Sita | L24: Netto DK | M24: 0.788 | O24: Net fibre content | Q24: =M26+M24*D18/SUM(D18:D23) -> 0.5866752738
B25: OPK | C25: 0.08184549963 | D25: 0.08299731788 | E25: 0.1025288796 | L25: LAMD | M25: 0.2 | O25: Net byproduct content | Q25: =M27+M24*(SUM(D19:D23)/SUM(D18:D23)) -> 0.2133247262
B26: Kunststof | C26: 0.02275026959 | D26: 0.6847423113 | E26: 0.4836135808 | L26: OPK | M26: 0.002
B27: organisch | C27: 0.01518843455 | D27: 0.03242878487 | E27: 0.112130132 | L27: Restafval | M27: 0.01
B28: textiel | C28: 0.0007256158247 | D28: 0.01214361352 | E28: 0.05619129597
B29: metaal | C29: 0.003514609471 | D29: 0.01268578703 | E29: 0.01246520711
B30: glas | C30: 0.0057723974 | D30: 0.001128313876 | E30: 0.0002303911035
B32: Verdeelfactoren NVP/(VP+NVP)
B33: Kunststof | C33: 0.1 | D33: 0.129 | E33: 0.095
B34: Metaal | C34: 0.26 | D34: 0.26 | E34: 0.26
A38: Nascheiden van drankenkartons
A39: Hoeveelheid drankenkartons in het restafval | D39: =Netto!C8 -> 0 | E39: [kg bruto/jaar]
A40: Nascheidingsrendement | D40: 0.6
A41: Nascheidingspotentie | D41: =D39*D40 -> 0 | E41: [kg bruto/jaar]
A42: Sorteerrendement | D42: 0.75
A43: Potentie aan DKR 510 FKN | D43: =D41*D42 -> 0 | E43: [kg bruto/jaar] | G43: Net fibre content | I43: 0.466 | J43: Uit pilot drankenkartons | L43: Getallen zijn op bruto gebaseerd
A44: Netto-potentie aan DKR 510 FKN | D44: =D43*(100%-data!G24) -> 0 | E44: [kg netto/jaar] | G44: Net byproduct content | I44: 0.182
A45: Vezelopbrengst | D45: 0.98 | F45: =D43*D45*I43 -> 0 | G45: [kg netto/jaar]
A46: Bijproductenopbrengst | D46: =92% -> 0.92 | F46: =D43*D46*I44 -> 0 | G46: [kg netto/jaar]
A50: Mono-inzameling van drankenkartons
A51: Hoeveelheid mono-inzameling | D51: =Feed!B11 -> 0 | E51: [ton bruto/jaar]
A52: Netto-inhoud aan vezels | D52: =(C18+C25)*D51 -> 0 | E52: [ton netto/jaar]
A53: Netto-inhoud aan bijproducten | D53: =(C19+C20+C21+C22+C23+C26+C29+C30)*D51 -> 0 | E53: =(C19+C20+C21+C22+C23+C26+C29+C30) -> 0.1762493355
A54: Vezelopbrengst | D54: 0.8 | F54: =D54*D52*1000 -> 0 | G54: [kg netto/jaar]
A55: Bijproductenopbrengst | D55: 0.95 | F55: =D55*D53*1000 -> 0 | G55: [kg netto/jaar]
B59: Uit de studie Evaluatie Drankenkartons 2016
B61: Netto-materiaalrendementen
B63: Inzameling | C63: nascheiden | D63: Sorteren | E63: Recyclen
A64: Mono BC | B64: 0.28 | E64: 0.85
A65: PD | B65: 0.31 | D65: 0.73 | E65: 0.81
A66: PMD | B66: 0.4 | D66: 0.73 | E66: 0.81
A67: Na | B67: 1 | C67: 0.57 | D67: 0.75 | E67: 0.89

Sheet PMD (hidden)
A1: Brutohoeveelheden ingezameld PMD
A3: KST | B3: =Netto!B25 -> 0 | C3: [kg bruto/jr]
A4: MET | B4: =Netto!B31 -> 0
A5: DK | B5: =Netto!B33 -> 0
A6: REST | B6: =B7-SUM(B3:B5) -> 0
A7: Totaal | B7: =Feed!B13*1000 -> 0
B10: Bruto BC,[kg/jaar] | G10: Bruto BC
A11: DK | B11: =B5 -> 0 | C11: [kg bruto/jaar] | D11: 0.805 | E11: Sorteerefficientie uit aanvullende rapportage DKS 2014 | G11: =B11*D11 -> 0 | H11: [kg bruto/jaar] | I11: Vezelinhoud | J11: =BC!Q24 -> 0.5866752738 | K11: =J11*G11 -> 0 | L11: Vezelopbrengst | M11: 0.87 | N11: =K11*M11 -> 0 | O11: [kg vezels ds]
I12: Bijproductinhoud | J12: =BC!Q25 -> 0.2133247262 | K12: =G11*J12 -> 0 | L12: Bijproductopbrengst | M12: 0.92 | N12: =K12*M12 -> 0 | O12: [kg bijproducten ds]
G16: Bruto totaal metaal
A17: MET | B17: =B4 -> 0 | C17: [kg bruto/jaar] | D17: 0.77 | E17: Sorteerefficiëntie | G17: =B17*D17 -> 0 | H17: [kg bruto/jaar] | I17: FE | J17: =Metal!B2 -> 0.7484843193 | K17: =G17*J17 -> 0 | L17: [kg bruto/jaar] | N17: =K17*(100%-data!$H$30) -> 0 | O17: [kg netto/jaar]
I18: NFE | J18: =Metal!B3 -> 0.2515156807 | K18: =G17*J18 -> 0 | L18: [kg bruto/jaar] | N18: =K18*(100%-data!$H$30) -> 0 | O18: [kg netto/jaar]
D19: 10% verlies vanwege PMD vervuiling
A30: Brutohoeveelheden ingezameld PD
B31: [kg bruto/jr]
A32: KST | B32: =Netto!B26 -> 0
A33: DK | B33: =Netto!B34 -> 0
A34: REST | B34: =B35-B32-B33 -> 0
A35: Totaal | B35: =Feed!B14*1000 -> 0
B37: Bruto BC,[kg/jaar] | G37: Bruto BC
A38: DK | B38: =B33 -> 0 | C38: [kg bruto/jaar] | D38: 0.805 | E38: Sorteerefficientie uit aanvullende rapportage DKS 2014 | G38: =B38*D38 -> 0 | H38: [kg bruto/jaar] | I38: Vezelinhoud | J38: =BC!Q24 -> 0.5866752738 | K38: =J38*G38 -> 0 | L38: Vezelopbrengst | M38: 0.87 | N38: =K38*M38 -> 0 | O38: [kg vezels ds]
I39: Bijproductinhoud | J39: =BC!Q25 -> 0.2133247262 | K39: =G38*J39 -> 0 | L39: Bijproductopbrengst | M39: 0.92 | N39: =K39*M39 -> 0 | O39: [kg bijproducten ds]

Sheet D (hidden)
A1: RVO, Mei 2013, Samenstelling van het huishoudelijk restafval, sorteeranalyses 2012, Utrecht
C2: Betrouwbaarheidsinterval | F2: Betrouwbaarheidsinterval
A3: Component | B3: Gem, [%] | C3: min | D3: max | E3: verpakkingen, [%] | F3: min | G3: max
A4: GFT-afval | B4: 41 | C4: 40 | D4: 43
A5: Papier/Karton | B5: 17 | C5: 16 | D5: 18 | E5: 7.5 | F5: 6.9 | G5: 8.1
A6: Luiers | B6: 4.4 | C6: 4 | D6: 4.9
A7: Kunststoffen | B7: 13 | C7: 12 | D7: 14 | E7: 8.3 | F7: 7.7 | G7: 9
A8: Glas | B8: 5.1 | C8: 4.6 | D8: 5.6 | E8: 4.7 | F8: 4.2 | G8: 5.2
A9: Ferrometalen | B9: 3.3 | C9: 2.9 | D9: 3.8 | E9: 2.5 | F9: 2.1 | G9: 2.9
A10: Nonferrometalen | B10: 1.1 | C10: 0.84 | D10: 1.3 | E10: 0.77 | F10: 0.57 | G10: 0.98
A11: Textiel | B11: 3.4 | C11: 3 | D11: 3.8
A12: KCA | B12: 0.06 | C12: 0.01 | D12: 0.12
A13: Overig EEA, steen, hout, etc | B13: 11 | C13: 10 | D13: 12
A14: Totaal | B14: =SUM(B4:B13) -> 99.36 | E14: =SUM(E4:E13) -> 23.77
C23: Betrouwbaarheidsinterval
A24: Component | B24: Gem, [%] | C24: min | D24: max
A25: Papier en Karton totaal | B25: 17 | C25: 16 | D25: 18
A26: Herbruikbaar | B26: 11 | C26: 10 | D26: 11
A27: - Papier verpakking, herbruikbaar | B27: 4.2 | C27: 3.7 | D27: 4.6
A28: - Papier niet-verpakking, herbruikbaar | B28: 6.5 | C28: 6 | D28: 7.1
A29: Niet herbruikbaar | B29: 6.3 | C29: 5.7 | D29: 6.9
A30: - Papier verpakking, niet herbruikbaar | B30: 3.3 | C30: 2.8 | D30: 3.9
A31: Drankkarton | B31: 3.1 | C31: 2.7 | D31: 3.5
A32: Overig papier / karton | B32: 0.25 | C32: 0.14 | D32: 0.36
A33: Papier niet verpakking, niet herbruikbaar | B33: 3 | C33: 2.6 | D33: 3.4
C43: Betrouwbaarheidsinterval
A44: Component | B44: Gem, [%] | C44: min | D44: max
A45: Glas totaal | B45: 5.1 | C45: 4.6 | D45: 5.6
A46: -verpakking | B46: 4.7 | C46: 4.2 | D46: 5.2
A47: - Niet verpakking | B47: 0.36 | C47: 0.23 | D47: 0.49

Sheet R pack (hidden)
A1: Hoeveelheid producten die namens de gemeente zijn geproduceerd uit de gescheiden ingezamelde verpakkingsmateriaalstromen
C2: Uit mono-inzameling | D2: Uit PMD-inzameling | E2: Uit PD-inzameling | F2: Uit nascheiding | H2: Totaal | L2: Totaal
A3: Categorie | B3: Producten | C3: [kg netto/jr] | D3: [kg netto/jr] | E3: [kg netto/jr] | F3: [kg netto/jr] | H3: [kg netto/jr] | L3: [kg netto/inw.jr]
A4: OPK | B4: =PB!Q7 -> Krantenpapier | C4: =PB!R7 -> 0 | H4: =SUM(C4:F4) -> 0 | L4: =IF(Feed!$B$2=0,0,H4/Feed!$B$2) -> 0 | N4: som opk | O4: =SUM(H4:H11) -> 0 | P4: =IF(Feed!$B$2=0,0,O4/Feed!$B$2) -> 0
B5: =PB!Q8 -> Ongestreken schrijfpapier | C5: =PB!R8 -> 0 | H5: =SUM(C5:F5) -> 0 | L5: =IF(Feed!$B$2=0,0,H5/Feed!$B$2) -> 0
B6: =PB!Q9 -> Gestreken schrijfpapier | C6: =PB!R9 -> 0 | H6: 0 | L6: =IF(Feed!$B$2=0,0,H6/Feed!$B$2) -> 0
B7: =PB!Q10 -> Golfkarton papier | C7: =PB!R10 -> 0 | H7: 0 | L7: =IF(Feed!$B$2=0,0,H7/Feed!$B$2) -> 0
B8: =PB!Q11 -> Pakpapier | C8: =PB!R11 -> 0 | H8: 0 | L8: =IF(Feed!$B$2=0,0,H8/Feed!$B$2) -> 0
B9: =PB!Q12 -> Massief karton | C9: =PB!R12 -> 0 | H9: 0 | L9: =IF(Feed!$B$2=0,0,H9/Feed!$B$2) -> 0
B10: =PB!Q13 -> Vouwkarton | C10: =PB!R13 -> 0 | H10: 0 | L10: =IF(Feed!$B$2=0,0,H10/Feed!$B$2) -> 0
B11: =PB!Q14 -> Sanitair papier | C11: =PB!R14 -> 0 | H11: 0 | L11: =IF(Feed!$B$2=0,0,H11/Feed!$B$2) -> 0
A12: Glas | B12: Verpakkingsglas wit | C12: =Glass!I8+Glass!I18+Glass!I30 -> 0 | H12: 0 | L12: =IF(Feed!$B$2=0,0,H12/Feed!$B$2) -> 0 | N12: som glas | O12: =H12+H13+H14+H15 -> 0 | P12: =IF(Feed!$B$2=0,0,O12/Feed!$B$2) -> 0
B13: Verpakkingsglas groen | C13: =Glass!I9+Glass!I19+Glass!I31 -> 0 | H13: 0 | L13: =IF(Feed!$B$2=0,0,H13/Feed!$B$2) -> 0
B14: Verpakkingsglas bruin | C14: =Glass!I10+Glass!I20+Glass!I32 -> 0 | H14: 0 | L14: =IF(Feed!$B$2=0,0,H14/Feed!$B$2) -> 0
B15: Glas bijproducten | C15: =Glass!J11+Glass!J21+Glass!J33 -> 0 | H15: 0 | L15: =IF(Feed!$B$2=0,0,H15/Feed!$B$2) -> 0
B16: Steen en puin uit glas | H16: 0
B17: Metaal uit glas | H17: 0
B18: Plastic afval uit glas | H18: 0
A19: Metaal-Fe | B19: Constructiestaal | C19: =Metal!G21 -> 0 | D19: =Metal!H21 -> 0 | F19: =Metal!F21 -> 0 | H19: 0 | L19: =IF(Feed!$B$2=0,0,H19/Feed!$B$2) -> 0 | N19: som MET | O19: =SUM(H19:H31) -> 0 | P19: =IF(Feed!$B$2=0,0,O19/Feed!$B$2) -> 0
B20: Automotive-staal | C20: =Metal!G22 -> 0 | D20: =Metal!H22 -> 0 | F20: =Metal!F22 -> 0 | H20: 0 | L20: =IF(Feed!$B$2=0,0,H20/Feed!$B$2) -> 0 | N20: som Fe MET | O20: =SUM(H19:H25) -> 0 | P20: =IF(Feed!$B$2=0,0,O20/Feed!$B$2) -> 0
B21: Verpakkingsstaal | C21: =Metal!G23 -> 0 | D21: =Metal!H23 -> 0 | F21: =Metal!F23 -> 0 | H21: 0 | L21: =IF(Feed!$B$2=0,0,H21/Feed!$B$2) -> 0
B22: Rails | C22: =Metal!G24 -> 0 | D22: =Metal!H24 -> 0 | F22: =Metal!F24 -> 0 | H22: 0 | L22: =IF(Feed!$B$2=0,0,H22/Feed!$B$2) -> 0
B23: Duurzame consumentenartikelen | C23: =Metal!G25 -> 0 | D23: =Metal!H25 -> 0 | F23: =Metal!F25 -> 0 | H23: 0 | L23: =IF(Feed!$B$2=0,0,H23/Feed!$B$2) -> 0
B24: Mijnbouwapparatuur | C24: =Metal!G26 -> 0 | D24: =Metal!H26 -> 0 | F24: =Metal!F26 -> 0 | H24: 0 | L24: =IF(Feed!$B$2=0,0,H24/Feed!$B$2) -> 0
B25: Scheepsstaal | C25: =Metal!G27 -> 0 | D25: =Metal!H27 -> 0 | F25: =Metal!F27 -> 0 | H25: 0 | L25: =IF(Feed!$B$2=0,0,H25/Feed!$B$2) -> 0
A26: Metaal-Aluminium | B26: Constructiealuminium | C26: =Metal!G32 -> 0 | D26: =Metal!H32 -> 0 | F26: =Metal!F32 -> 0 | H26: 0 | L26: =IF(Feed!$B$2=0,0,H26/Feed!$B$2) -> 0 | N26: som NF met | O26: =SUM(H26:H31) -> 0 | P26: =IF(Feed!$B$2=0,0,O26/Feed!$B$2) -> 0
B27: Transport-aluminium | C27: =Metal!G33 -> 0 | D27: =Metal!H33 -> 0 | F27: =Metal!F33 -> 0 | H27: 0 | L27: =IF(Feed!$B$2=0,0,H27/Feed!$B$2) -> 0
B28: Verpakkingsaluminium | C28: =Metal!G34 -> 0 | D28: =Metal!H34 -> 0 | F28: =Metal!F34 -> 0 | H28: 0 | L28: =IF(Feed!$B$2=0,0,H28/Feed!$B$2) -> 0
B29: Machines | C29: =Metal!G35 -> 0 | D29: =Metal!H35 -> 0 | F29: =Metal!F35 -> 0 | H29: 0 | L29: =IF(Feed!$B$2=0,0,H29/Feed!$B$2) -> 0
B30: Diverse toepassingen aluminium | C30: =Metal!G36 -> 0 | D30: =Metal!H36 -> 0 | F30: =Metal!F36 -> 0 | H30: 0 | L30: =IF(Feed!$B$2=0,0,H30/Feed!$B$2) -> 0
B31: Desox | C31: =Metal!G37 -> 0 | D31: =Metal!H37 -> 0 | F31: =Metal!F37 -> 0 | H31: 0 | L31: =IF(Feed!$B$2=0,0,H31/Feed!$B$2) -> 0
A32: Kunststof | B32: Flessen | C32: =Plastics!B46 -> 0 | D32: =Plastics!J46 -> 0 | E32: =Plastics!R46 -> 0 | F32: =Plastics!AA46 -> 0 | H32: 0 | L32: =IF(Feed!$B$2=0,0,H32/Feed!$B$2) -> 0 | N32: som KST | O32: =SUM(H32:H54) -> 0 | P32: =IF(Feed!$B$2=0,0,O32/Feed!$B$2) -> 0
B33: Trays | C33: =Plastics!B47 -> 0 | D33: =Plastics!J47 -> 0 | E33: =Plastics!R47 -> 0 | F33: =Plastics!AA47 -> 0 | H33: 0 | L33: =IF(Feed!$B$2=0,0,H33/Feed!$B$2) -> 0
B34: Fleece | C34: =Plastics!B48 -> 0 | D34: =Plastics!J48 -> 0 | E34: =Plastics!R48 -> 0 | F34: =Plastics!AA48 -> 0 | H34: 0 | L34: =IF(Feed!$B$2=0,0,H34/Feed!$B$2) -> 0
B35: Strapping | C35: =Plastics!B49 -> 0 | D35: =Plastics!J49 -> 0 | E35: =Plastics!R49 -> 0 | F35: =Plastics!AA49 -> 0 | H35: 0 | L35: =IF(Feed!$B$2=0,0,H35/Feed!$B$2) -> 0
B36: Kabelomhulling | C36: =Plastics!B50 -> 0 | D36: =Plastics!J50 -> 0 | E36: =Plastics!R50 -> 0 | F36: =Plastics!AA50 -> 0 | H36: =SUM(C36:F36) -> 0 | L36: =IF(Feed!$B$2=0,0,H36/Feed!$B$2) -> 0
B37: Afvoerpijpen | C37: =Plastics!B51 -> 0 | D37: =Plastics!J51 -> 0 | E37: =Plastics!R51 -> 0 | F37: =Plastics!AA51 -> 0 | H37: 0 | L37: =IF(Feed!$B$2=0,0,H37/Feed!$B$2) -> 0
B38: Rolkernen | C38: =Plastics!B52 -> 0 | D38: =Plastics!J52 -> 0 | E38: =Plastics!R52 -> 0 | F38: =Plastics!AA52 -> 0 | H38: 0 | L38: =IF(Feed!$B$2=0,0,H38/Feed!$B$2) -> 0
B39: Rijplaten | C39: =Plastics!B53 -> 0 | D39: =Plastics!J53 -> 0 | E39: =Plastics!R53 -> 0 | F39: =Plastics!AA53 -> 0 | H39: 0 | L39: =IF(Feed!$B$2=0,0,H39/Feed!$B$2) -> 0
B40: Afvalcontainers | C40: =Plastics!B54 -> 0 | D40: =Plastics!J54 -> 0 | E40: =Plastics!R54 -> 0 | F40: =Plastics!AA54 -> 0 | H40: 0 | L40: =IF(Feed!$B$2=0,0,H40/Feed!$B$2) -> 0
B41: Non-food flacons | C41: =Plastics!B55 -> 0 | D41: =Plastics!J55 -> 0 | E41: =Plastics!R55 -> 0 | F41: =Plastics!AA55 -> 0 | H41: 0 | L41: =IF(Feed!$B$2=0,0,H41/Feed!$B$2) -> 0
B42: Bloempotten | C42: =Plastics!B56 -> 0 | D42: =Plastics!J56 -> 0 | E42: =Plastics!R56 -> 0 | F42: =Plastics!AA56 -> 0 | H42: 0 | L42: =IF(Feed!$B$2=0,0,H42/Feed!$B$2) -> 0
B43: Kratten | C43: =Plastics!B57 -> 0 | D43: =Plastics!J57 -> 0 | E43: =Plastics!R57 -> 0 | F43: =Plastics!AA57 -> 0 | H43: 0 | L43: =IF(Feed!$B$2=0,0,H43/Feed!$B$2) -> 0
B44: Boombekisting | C44: =Plastics!B58 -> 0 | D44: =Plastics!J58 -> 0 | E44: =Plastics!R58 -> 0 | F44: =Plastics!AA58 -> 0 | H44: 0 | L44: =IF(Feed!$B$2=0,0,H44/Feed!$B$2) -> 0
B45: Apparaatbehuizing | C45: =Plastics!B59 -> 0 | D45: =Plastics!J59 -> 0 | E45: =Plastics!R59 -> 0 | F45: =Plastics!AA59 -> 0 | H45: 0 | L45: =IF(Feed!$B$2=0,0,H45/Feed!$B$2) -> 0
B46: Pallets | C46: =Plastics!B60 -> 0 | D46: =Plastics!J60 -> 0 | E46: =Plastics!R60 -> 0 | F46: =Plastics!AA60 -> 0 | H46: 0 | L46: =IF(Feed!$B$2=0,0,H46/Feed!$B$2) -> 0
B47: Tuinmeubelen | C47: =Plastics!B61 -> 0 | D47: =Plastics!J61 -> 0 | E47: =Plastics!R61 -> 0 | F47: =Plastics!AA61 -> 0 | H47: 0 | L47: =IF(Feed!$B$2=0,0,H47/Feed!$B$2) -> 0
B48: Speeltoestellen | C48: =Plastics!B62 -> 0 | D48: =Plastics!J62 -> 0 | E48: =Plastics!R62 -> 0 | F48: =Plastics!AA62 -> 0 | H48: 0 | L48: =IF(Feed!$B$2=0,0,H48/Feed!$B$2) -> 0
B49: Verkeersafscheiders | C49: =Plastics!B63 -> 0 | D49: =Plastics!J63 -> 0 | E49: =Plastics!R63 -> 0 | F49: =Plastics!AA63 -> 0 | H49: 0 | L49: =IF(Feed!$B$2=0,0,H49/Feed!$B$2) -> 0
B50: Oeverbeschoeiing | C50: =Plastics!B64 -> 0 | D50: =Plastics!J64 -> 0 | E50: =Plastics!R64 -> 0 | F50: =Plastics!AA64 -> 0 | H50: 0 | L50: =IF(Feed!$B$2=0,0,H50/Feed!$B$2) -> 0
B51: Steigers plastic lumber | C51: =Plastics!B65 -> 0 | D51: =Plastics!J65 -> 0 | E51: =Plastics!R65 -> 0 | F51: =Plastics!AA65 -> 0 | H51: 0 | L51: =IF(Feed!$B$2=0,0,H51/Feed!$B$2) -> 0
B52: Bouwemmers, speciekuipen | C52: =Plastics!B66 -> 0 | D52: =Plastics!J66 -> 0 | E52: =Plastics!R66 -> 0 | F52: =Plastics!AA66 -> 0 | H52: 0 | L52: =IF(Feed!$B$2=0,0,H52/Feed!$B$2) -> 0
B53: =Plastics!A67 -> Asfalttoeslagstof | H53: 0 | L53: =IF(Feed!$B$2=0,0,H53/Feed!$B$2) -> 0
B54: =Plastics!A68 -> Brandstof | H54: 0 | L54: =IF(Feed!$B$2=0,0,H54/Feed!$B$2) -> 0
A55: Drankenkartons | B55: Vezels /Solid board | C55: =BC!F54 -> 0 | E55: =PMD!N38 -> 0 | H55: 0 | L55: =IF(Feed!$B$2=0,0,H55/Feed!$B$2) -> 0 | N55: som DK | O55: =SUM(H55:H57) -> 0 | P55: =IF(Feed!$B$2=0,0,O55/Feed!$B$2) -> 0
B56: Vezels / Container board | F56: =IF(Invullen!C39="Ja",BC!F45,0) -> 0 | H56: 0 | L56: =IF(Feed!$B$2=0,0,H56/Feed!$B$2) -> 0
B57: Vezels / Sanitary paper | D57: =PMD!N11 -> 0 | H57: 0 | L57: =IF(Feed!$B$2=0,0,H57/Feed!$B$2) -> 0
B58: bijproducten | C58: =BC!F55 -> 0 | D58: =PMD!N12 -> 0 | E58: =PMD!N39 -> 0 | F58: =IF(Invullen!C39="Ja",BC!F46,0) -> 0 | H58: 0 | L58: =IF(Feed!$B$2=0,0,H58/Feed!$B$2) -> 0
H59: =SUM(H4:H58) -> 0 | L59: =SUM(L4:L58) -> 0

Sheet R pack + non pack (hidden)
A1: Hoeveelheid producten die namens de gemeente zijn geproduceerd uit de gescheiden ingezamelde materiaalstromen
C2: Uit mono-inzameling | D2: Uit PMD-inzameling | E2: Uit PD-inzameling | F2: Uit nascheiding | H2: Totaal | L2: Totaal
A3: Categorie | B3: Producten | C3: [kg netto/jr] | D3: [kg netto/jr] | E3: [kg netto/jr] | F3: [kg netto/jr] | H3: [kg netto/jr] | L3: [kg netto/inw.jr]
A4: OPK | B4: =PB!Q7 -> Krantenpapier | H4: ='R pack'!H4*Netto!$K$44 -> 0 | L4: =IF(Feed!$B$2=0,0,H4/Feed!$B$2) -> 0 | N4: som opk | O4: =SUM(H4:H11) -> 0 | P4: =IF(Feed!$B$2=0,0,O4/Feed!$B$2) -> 0
B5: =PB!Q8 -> Ongestreken schrijfpapier | H5: ='R pack'!H5*Netto!$K$44 -> 0 | L5: =IF(Feed!$B$2=0,0,H5/Feed!$B$2) -> 0
B6: =PB!Q9 -> Gestreken schrijfpapier | H6: ='R pack'!H6*Netto!$K$44 -> 0 | L6: =IF(Feed!$B$2=0,0,H6/Feed!$B$2) -> 0
B7: =PB!Q10 -> Golfkarton papier | H7: ='R pack'!H7*Netto!$K$44 -> 0 | L7: =IF(Feed!$B$2=0,0,H7/Feed!$B$2) -> 0
B8: =PB!Q11 -> Pakpapier | H8: ='R pack'!H8*Netto!$K$44 -> 0 | L8: =IF(Feed!$B$2=0,0,H8/Feed!$B$2) -> 0
B9: =PB!Q12 -> Massief karton | H9: ='R pack'!H9*Netto!$K$44 -> 0 | L9: =IF(Feed!$B$2=0,0,H9/Feed!$B$2) -> 0
B10: =PB!Q13 -> Vouwkarton | H10: ='R pack'!H10*Netto!$K$44 -> 0 | L10: =IF(Feed!$B$2=0,0,H10/Feed!$B$2) -> 0
B11: =PB!Q14 -> Sanitair papier | H11: ='R pack'!H11*Netto!$K$44 -> 0 | L11: =IF(Feed!$B$2=0,0,H11/Feed!$B$2) -> 0
A12: Glas | B12: Verpakkingsglas wit | H12: ='R pack'!H12*Netto!$K$46 -> 0 | L12: =IF(Feed!$B$2=0,0,H12/Feed!$B$2) -> 0 | N12: som glas | O12: =H12+H13+H14+H15 -> 0 | P12: =IF(Feed!$B$2=0,0,O12/Feed!$B$2) -> 0
B13: Verpakkingsglas groen | H13: ='R pack'!H13*Netto!$K$46 -> 0 | L13: =IF(Feed!$B$2=0,0,H13/Feed!$B$2) -> 0
B14: Verpakkingsglas bruin | H14: ='R pack'!H14*Netto!$K$46 -> 0 | L14: =IF(Feed!$B$2=0,0,H14/Feed!$B$2) -> 0
B15: Glas bijproducten | H15: ='R pack'!H15*Netto!$K$46 -> 0 | L15: =IF(Feed!$B$2=0,0,H15/Feed!$B$2) -> 0
B16: Steen en puin uit glas | L16: =IF(Feed!$B$2=0,0,H16/Feed!$B$2) -> 0
B17: Metaal uit glas | L17: =IF(Feed!$B$2=0,0,H17/Feed!$B$2) -> 0
B18: Plastic afval uit glas | L18: =IF(Feed!$B$2=0,0,H18/Feed!$B$2) -> 0
A19: Metaal-Fe | B19: Constructiestaal | H19: ='R pack'!H19*Netto!$K$47 -> 0 | L19: =IF(Feed!$B$2=0,0,H19/Feed!$B$2) -> 0 | N19: som MET | O19: =SUM(H19:H31) -> 0 | P19: =IF(Feed!$B$2=0,0,O19/Feed!$B$2) -> 0
B20: Automotive-staal | H20: ='R pack'!H20*Netto!$K$47 -> 0 | L20: =IF(Feed!$B$2=0,0,H20/Feed!$B$2) -> 0 | N20: som Fe MET | O20: =SUM(H19:H25) -> 0 | P20: =IF(Feed!$B$2=0,0,O20/Feed!$B$2) -> 0
B21: Verpakkingsstaal | H21: ='R pack'!H21*Netto!$K$47 -> 0 | L21: =IF(Feed!$B$2=0,0,H21/Feed!$B$2) -> 0
B22: Rails | H22: ='R pack'!H22*Netto!$K$47 -> 0 | L22: =IF(Feed!$B$2=0,0,H22/Feed!$B$2) -> 0
B23: Duurzame consumentenartikelen | H23: ='R pack'!H23*Netto!$K$47 -> 0 | L23: =IF(Feed!$B$2=0,0,H23/Feed!$B$2) -> 0
B24: Mijnbouwapparatuur | H24: ='R pack'!H24*Netto!$K$47 -> 0 | L24: =IF(Feed!$B$2=0,0,H24/Feed!$B$2) -> 0
B25: Scheepsstaal | H25: ='R pack'!H25*Netto!$K$47 -> 0 | L25: =IF(Feed!$B$2=0,0,H25/Feed!$B$2) -> 0
A26: Metaal-Aluminium | B26: Constructiealuminium | H26: ='R pack'!H26*Netto!$K$47 -> 0 | L26: =IF(Feed!$B$2=0,0,H26/Feed!$B$2) -> 0 | N26: som NF met | O26: =SUM(H26:H31) -> 0 | P26: =IF(Feed!$B$2=0,0,O26/Feed!$B$2) -> 0
B27: Transport-aluminium | H27: ='R pack'!H27*Netto!$K$47 -> 0 | L27: =IF(Feed!$B$2=0,0,H27/Feed!$B$2) -> 0
B28: Verpakkingsaluminium | H28: ='R pack'!H28*Netto!$K$47 -> 0 | L28: =IF(Feed!$B$2=0,0,H28/Feed!$B$2) -> 0
B29: Machines | H29: ='R pack'!H29*Netto!$K$47 -> 0 | L29: =IF(Feed!$B$2=0,0,H29/Feed!$B$2) -> 0
B30: Diverse | H30: ='R pack'!H30*Netto!$K$47 -> 0 | L30: =IF(Feed!$B$2=0,0,H30/Feed!$B$2) -> 0
B31: Desox | H31: ='R pack'!H31*Netto!$K$47 -> 0 | L31: =IF(Feed!$B$2=0,0,H31/Feed!$B$2) -> 0
A32: Kunststof | B32: Flessen | C32: ='R pack'!C32*Netto!$K$45 -> 0 | D32: ='R pack'!D32*Netto!$K$45 -> 0 | E32: ='R pack'!E32*Netto!$K$45 -> 0 | F32: =Plastics!AB46 -> 0 | H32: =SUM(C32:F32) -> 0 | L32: =IF(Feed!$B$2=0,0,H32/Feed!$B$2) -> 0 | N32: som KST | O32: =SUM(H32:H54) -> 0 | P32: =IF(Feed!$B$2=0,0,O32/Feed!$B$2) -> 0
B33: Trays | C33: ='R pack'!C33*Netto!$K$45 -> 0 | D33: ='R pack'!D33*Netto!$K$45 -> 0 | E33: ='R pack'!E33*Netto!$K$45 -> 0 | F33: =Plastics!AB47 -> 0 | H33: 0 | L33: =IF(Feed!$B$2=0,0,H33/Feed!$B$2) -> 0
B34: Fleece | C34: ='R pack'!C34*Netto!$K$45 -> 0 | D34: ='R pack'!D34*Netto!$K$45 -> 0 | E34: ='R pack'!E34*Netto!$K$45 -> 0 | F34: =Plastics!AB48 -> 0 | H34: 0 | L34: =IF(Feed!$B$2=0,0,H34/Feed!$B$2) -> 0
B35: Strapping | C35: ='R pack'!C35*Netto!$K$45 -> 0 | D35: ='R pack'!D35*Netto!$K$45 -> 0 | E35: ='R pack'!E35*Netto!$K$45 -> 0 | F35: =Plastics!AB49 -> 0 | H35: 0 | L35: =IF(Feed!$B$2=0,0,H35/Feed!$B$2) -> 0
B36: Kabelomhulling | C36: ='R pack'!C36*Netto!$K$45 -> 0 | D36: ='R pack'!D36*Netto!$K$45 -> 0 | E36: ='R pack'!E36*Netto!$K$45 -> 0 | F36: =Plastics!AB50 -> 0 | H36: 0 | L36: =IF(Feed!$B$2=0,0,H36/Feed!$B$2) -> 0
B37: Afvoerpijpen | C37: ='R pack'!C37*Netto!$K$45 -> 0 | D37: ='R pack'!D37*Netto!$K$45 -> 0 | E37: ='R pack'!E37*Netto!$K$45 -> 0 | F37: =Plastics!AB51 -> 0 | H37: 0 | L37: =IF(Feed!$B$2=0,0,H37/Feed!$B$2) -> 0
B38: Rolkernen | C38: ='R pack'!C38*Netto!$K$45 -> 0 | D38: ='R pack'!D38*Netto!$K$45 -> 0 | E38: ='R pack'!E38*Netto!$K$45 -> 0 | F38: =Plastics!AB52 -> 0 | H38: 0 | L38: =IF(Feed!$B$2=0,0,H38/Feed!$B$2) -> 0
B39: Rijplaten | C39: ='R pack'!C39*Netto!$K$45 -> 0 | D39: ='R pack'!D39*Netto!$K$45 -> 0 | E39: ='R pack'!E39*Netto!$K$45 -> 0 | F39: =Plastics!AB53 -> 0 | H39: 0 | L39: =IF(Feed!$B$2=0,0,H39/Feed!$B$2) -> 0
B40: Afvalcontainers | C40: ='R pack'!C40*Netto!$K$45 -> 0 | D40: ='R pack'!D40*Netto!$K$45 -> 0 | E40: ='R pack'!E40*Netto!$K$45 -> 0 | F40: =Plastics!AB54 -> 0 | H40: 0 | L40: =IF(Feed!$B$2=0,0,H40/Feed!$B$2) -> 0
B41: Non-food flacons | C41: ='R pack'!C41*Netto!$K$45 -> 0 | D41: ='R pack'!D41*Netto!$K$45 -> 0 | E41: ='R pack'!E41*Netto!$K$45 -> 0 | F41: =Plastics!AB55 -> 0 | H41: 0 | L41: =IF(Feed!$B$2=0,0,H41/Feed!$B$2) -> 0
B42: Bloempotten | C42: ='R pack'!C42*Netto!$K$45 -> 0 | D42: ='R pack'!D42*Netto!$K$45 -> 0 | E42: ='R pack'!E42*Netto!$K$45 -> 0 | F42: =Plastics!AB56 -> 0 | H42: 0 | L42: =IF(Feed!$B$2=0,0,H42/Feed!$B$2) -> 0
B43: Kratten | C43: ='R pack'!C43*Netto!$K$45 -> 0 | D43: ='R pack'!D43*Netto!$K$45 -> 0 | E43: ='R pack'!E43*Netto!$K$45 -> 0 | F43: =Plastics!AB57 -> 0 | H43: 0 | L43: =IF(Feed!$B$2=0,0,H43/Feed!$B$2) -> 0
B44: Boombekisting | C44: ='R pack'!C44*Netto!$K$45 -> 0 | D44: ='R pack'!D44*Netto!$K$45 -> 0 | E44: ='R pack'!E44*Netto!$K$45 -> 0 | F44: =Plastics!AB58 -> 0 | H44: 0 | L44: =IF(Feed!$B$2=0,0,H44/Feed!$B$2) -> 0
B45: Apparaatbehuizing | C45: ='R pack'!C45*Netto!$K$45 -> 0 | D45: ='R pack'!D45*Netto!$K$45 -> 0 | E45: ='R pack'!E45*Netto!$K$45 -> 0 | F45: =Plastics!AB59 -> 0 | H45: 0 | L45: =IF(Feed!$B$2=0,0,H45/Feed!$B$2) -> 0
B46: Pallets | C46: ='R pack'!C46*Netto!$K$45 -> 0 | D46: ='R pack'!D46*Netto!$K$45 -> 0 | E46: ='R pack'!E46*Netto!$K$45 -> 0 | F46: =Plastics!AB60 -> 0 | H46: 0 | L46: =IF(Feed!$B$2=0,0,H46/Feed!$B$2) -> 0
B47: Tuinmeubelen | C47: ='R pack'!C47*Netto!$K$45 -> 0 | D47: ='R pack'!D47*Netto!$K$45 -> 0 | E47: ='R pack'!E47*Netto!$K$45 -> 0 | F47: =Plastics!AB61 -> 0 | H47: 0 | L47: =IF(Feed!$B$2=0,0,H47/Feed!$B$2) -> 0
B48: Speeltoestellen | C48: ='R pack'!C48*Netto!$K$45 -> 0 | D48: ='R pack'!D48*Netto!$K$45 -> 0 | E48: ='R pack'!E48*Netto!$K$45 -> 0 | F48: =Plastics!AB62 -> 0 | H48: 0 | L48: =IF(Feed!$B$2=0,0,H48/Feed!$B$2) -> 0
B49: Verkeersafscheiders | C49: ='R pack'!C49*Netto!$K$45 -> 0 | D49: ='R pack'!D49*Netto!$K$45 -> 0 | E49: ='R pack'!E49*Netto!$K$45 -> 0 | F49: =Plastics!AB63 -> 0 | H49: 0 | L49: =IF(Feed!$B$2=0,0,H49/Feed!$B$2) -> 0
B50: Oeverbeschoeiing | C50: ='R pack'!C50*Netto!$K$45 -> 0 | D50: ='R pack'!D50*Netto!$K$45 -> 0 | E50: ='R pack'!E50*Netto!$K$45 -> 0 | F50: =Plastics!AB64 -> 0 | H50: 0 | L50: =IF(Feed!$B$2=0,0,H50/Feed!$B$2) -> 0
B51: Steigers plastic lumber | C51: ='R pack'!C51*Netto!$K$45 -> 0 | D51: ='R pack'!D51*Netto!$K$45 -> 0 | E51: ='R pack'!E51*Netto!$K$45 -> 0 | F51: =Plastics!AB65 -> 0 | H51: 0 | L51: =IF(Feed!$B$2=0,0,H51/Feed!$B$2) -> 0
B52: Bouwemmers, speciekuipen | C52: ='R pack'!C52*Netto!$K$45 -> 0 | D52: ='R pack'!D52*Netto!$K$45 -> 0 | E52: ='R pack'!E52*Netto!$K$45 -> 0 | F52: =Plastics!AB66 -> 0 | H52: 0 | L52: =IF(Feed!$B$2=0,0,H52/Feed!$B$2) -> 0
B53: =Plastics!A67 -> Asfalttoeslagstof | L53: =IF(Feed!$B$2=0,0,H53/Feed!$B$2) -> 0
B54: =Plastics!A68 -> Brandstof | L54: =IF(Feed!$B$2=0,0,H54/Feed!$B$2) -> 0
A55: Drankenkartons | B55: Vezels /Solid board | H55: ='R pack'!H55 -> 0 | L55: =IF(Feed!$B$2=0,0,H55/Feed!$B$2) -> 0 | N55: som DK | O55: =SUM(H55:H57) -> 0 | P55: =IF(Feed!$B$2=0,0,O55/Feed!$B$2) -> 0
B56: Vezels / Container board | H56: ='R pack'!H56 -> 0 | L56: =IF(Feed!$B$2=0,0,H56/Feed!$B$2) -> 0
B57: Vezels / Sanitary paper | H57: ='R pack'!H57 -> 0 | L57: =IF(Feed!$B$2=0,0,H57/Feed!$B$2) -> 0
B58: bijproducten | H58: ='R pack'!H58 -> 0 | L58: =IF(Feed!$B$2=0,0,H58/Feed!$B$2) -> 0
A59: Totaal | H59: =SUM(H4:H58) -> 0 | L59: =SUM(L4:L58) -> 0

Sheet Graphical results (hidden)
A1: Bruto vergelijking | B1: Huisvuil | C1: Gescheiden inzameling | E1: Inzamelefficientie
A2: Papier en karton verpakkingen | B2: =Netto!B4 -> 0 | C2: =Netto!D23 -> 0 | E2: =C2/(B2+C2) -> 
A3: Kunststofverpakkingen | B3: =Netto!B5 -> 0 | C3: =Netto!D24+Netto!D25+Netto!D26 -> 0 | E3: =C3/(B3+C3) -> 
A4: Glasverpakkingen | B4: =Netto!B6 -> 0 | C4: =Netto!D27+Netto!D28+Netto!D29 -> 0 | E4: =C4/(B4+C4) -> 
A5: Metaal verpakkingen | B5: =Netto!B7 -> 0 | C5: =Netto!D30+Netto!D31 -> 0 | E5: =C5/(B5+C5) -> 
A6: Drankenkartons | B6: =Netto!B8 -> 0 | C6: =Netto!D32+Netto!D33 -> 0 | E6: =C6/(B6+C6) -> 
A10: Netto vergelijking | B10: Huisvuil | C10: Gescheiden inzameling | E10: Inzamel-efficiëntie gemeente | F10: Inzamel-efficiëntie nationaal gemiddelde 2017 | G10: Inzamel-efficiëntie nationaal gemiddelde 2014
A11: Papier en karton verpakkingen | B11: =Netto!D4/(Netto!E23+Netto!D4) ->  | C11: =Netto!E23/(Netto!E23+Netto!D4) ->  | E11: =C11/(B11+C11) ->  | F11: ='Nationale referentiedata'!F16 -> 0.7670769767 | G11: 0.7520517454
A12: Kunststof verpakkingen | B12: =Netto!D5/(Netto!E24+Netto!E25+Netto!E26+Netto!D5) ->  | C12: =(Netto!E24+Netto!E25+Netto!E26)/(Netto!E24+Netto!E25+Netto!E26+Netto!D5) ->  | E12: =C12/(B12+C12) ->  | F12: ='Nationale referentiedata'!G17 -> 0.4555209361 | G12: 0.327016822
A13: Glas verpakkingen | B13: =Netto!D6/(Netto!E27+Netto!E28+Netto!E29+Netto!D6) ->  | C13: =(Netto!E27+Netto!E28+Netto!E29)/(Netto!E27+Netto!E28+Netto!E29+Netto!D6) ->  | E13: =C13/(B13+C13) ->  | F13: ='Nationale referentiedata'!F20 -> 0.7088210957 | G13: 0.6820650434
A14: Metaal verpakkingen | B14: =Netto!D7/(Netto!E30+Netto!E31+Netto!D7) ->  | C14: =(Netto!E30+Netto!E31)/(Netto!E30+Netto!E31+Netto!D7) ->  | E14: =C14/(B14+C14) ->  | F14: ='Nationale referentiedata'!G21 -> 0.161583621 | G14: 0.01885912899
A15: Drankenkartons | B15: =Netto!D8/(Netto!E32+Netto!E33+Netto!E34+Netto!D8) ->  | C15: =(Netto!E32+Netto!E33+Netto!E34)/(Netto!E32+Netto!E33+Netto!E34+Netto!D8) ->  | E15: =C15/(B15+C15) ->  | F15: ='Nationale referentiedata'!G23 -> 0.3011786259 | G15: 0.0447724213
A27: Overall | G27: Further detailled
I28: Recycling
B29: Potentiaal | C29: Recycling producten | D29: Netto ketenrendement | H29: =B29 -> Potentiaal | I29: recycling via gescheiden ingezameling | J29: recycling via PMD-inzameling | K29: Recycling via PD | L29: recycling via nascheiding
A30: Papier en karton verpakkingen | B30: =Netto!D44 -> 0 | C30: ='R pack'!O4 -> 0 | D30: =C30/B30 ->  | G30: =A30 -> Papier en karton verpakkingen | H30: 0 | I30: =SUM('R pack'!C4:C11) -> 0
A31: Kunststofverpakkingen | B31: =Netto!D45 -> 0 | C31: ='R pack'!O32 -> 0 | D31: =C31/B31 ->  | G31: =A31 -> Kunststofverpakkingen | H31: 0 | I31: =SUM('R pack'!C32:C52) -> 0 | J31: =SUM('R pack'!D32:D52) -> 0 | K31: =SUM('R pack'!E32:E52) -> 0 | L31: =SUM('R pack'!F32:F52) -> 0
A32: Glasverpakkingen | B32: =Netto!D46 -> 0 | C32: ='R pack'!O12 -> 0 | D32: =C32/B32 ->  | G32: =A32 -> Glasverpakkingen | H32: 0 | I32: =SUM('R pack'!C12:C15) -> 0
A33: Metaal verpakkingen | B33: =Netto!D47 -> 0 | C33: ='R pack'!O19 -> 0 | D33: =C33/B33 ->  | G33: =A33 -> Metaal verpakkingen | H33: 0 | I33: =SUM('R pack'!C19:C30) -> 0 | J33: =SUM('R pack'!D19:D30) -> 0 | L33: =SUM('R pack'!F19:F30) -> 0
A34: Drankenkartons | B34: =Netto!D48 -> 0 | C34: ='R pack'!O55 -> 0 | D34: =C34/B34 ->  | G34: =A34 -> Drankenkartons | H34: 0 | I34: =SUM('R pack'!C55:C58) -> 0 | J34: =SUM('R pack'!D56:D58) -> 0 | K34: =SUM('R pack'!E56:E58) -> 0 | L34: =SUM('R pack'!F56:F58) -> 0
A37: Netto recyclingketen rendementen | D37: Net chain recycling yields | H37: =A37 -> Netto recyclingketen rendementen | I37: Gescheiden inzameling | J37: PMD inzameling | K37: PD inzameling | L37: Nascheiden
A38: Papier en karton verpakkingen | D38: =D30 ->  | H38: Papier en karton verpakkingen (OPK) | I38: =I30/$H30 ->  | L38: =L30/$H30 -> 
H39: OPK Nationaal gemiddelde 2017 | I39: =I50 -> 0.6987129233 | L39: =L50 -> 0
A40: Kunststofverpakkingen | D40: =D31 ->  | H40: Kunststofverpakkingen (KST) | I40: =I31/$H31 ->  | J40: =J31/$H31 ->  | K40: =K31/$H31 ->  | L40: =L31/$H31 -> 
H41: KST Nationaal gemiddelde 2017 | I41: 0.03120315864 | J41: 0.2445677077 | K41: 0.0487386218 | L41: =L51 -> 0.05445794313
A42: Glasverpakkingen | D42: =D32 ->  | H42: Glasverpakkingen (GL) | I42: =I32/$H32 ->  | L42: =L32/$H32 -> 
H43: GL Nationaal gemiddelde 2017 | I43: =I52 -> 0.6723168092 | L43: =L52 -> 0
A44: Metaal verpakkingen | D44: =D33 ->  | H44: Metaal verpakkingen (MET) | I44: =I33/$H33 ->  | J44: =J33/$H33 ->  | L44: =L33/$H33 -> 
H45: MET Nationaal gemiddelde 2017 | I45: =0.917957230952512% -> 0.00917957231 | J45: 0.1427772185 | L45: =L53 -> 0.6988468805
A46: Drankenkartons | D46: =D34 ->  | H46: Drankenkartons (DK) | I46: =I34/$H34 ->  | J46: =J34/$H34 ->  | K46: =K34/$H34 ->  | L46: =L34/$H34 -> 
H47: DK Nationaal gemiddelde 2017 | I47: =0.740568385090546% -> 0.007405683851 | J47: 0.1905643002 | K47: 0.01236146196 | L47: =L54 -> 0.02499368608
G49: Nationale referentie | H49: =H37 -> Netto recyclingketen rendementen | I49: Ref 2017 | L49: =L37 -> Nascheiden | M49: Nationaal Gemiddelde 2014 (Alle inzamelmethoden)
H50: Paper & board packaging | I50: 0.6987129233 | L50: 0 | M50: =SUM(I50:L50) -> 0.6987129233
H51: Plastic packaging | I51: 0.3245094881 | L51: 0.05445794313 | M51: =SUM(I51:L51) -> 0.3789674312
H52: Glass packaging | I52: 0.6723168092 | L52: 0 | M52: 0.6723168092
H53: Metal packaging | I53: 0.1519567908 | L53: 0.6988468805 | M53: 0.8508036713
H54: Beverage cartons | I54: 0.210331446 | L54: 0.02499368608 | M54: 0.2353251321
A55: Total amounts of recycled products made on behalf of the municipality, [ton net/a]
B56: Alleen verpakkingen | C56: Verpakkingen en niet-verpakkingen
A57: Papier en karton verpakkingen | B57: ='R pack'!O4/1000 -> 0 | C57: ='R pack + non pack'!O4/1000 -> 0
A58: Kunststofverpakkingen | B58: ='R pack'!O32/1000 -> 0 | C58: ='R pack + non pack'!O32/1000 -> 0
A59: Glasverpakkingen | B59: ='R pack'!O12/1000 -> 0 | C59: ='R pack + non pack'!O12/1000 -> 0
A60: Metaal verpakkingen | B60: ='R pack'!O19/1000 -> 0 | C60: ='R pack + non pack'!O19/1000 -> 0
A61: Drankenkartons | B61: ='R pack'!O55/1000 -> 0 | C61: ='R pack + non pack'!O55/1000 -> 0
A62: Totaal | B62: =SUM(B57:B61) -> 0 | C62: =SUM(C57:C61) -> 0

Sheet Nationale referentiedata (hidden)
B3: 2014
B4: Netto inzamelefficientie
B5: Net comparison | C5: MSW | D5: Separate collection | F5: collection efficiency
B6: Paper & board packaging | C6: 92428330.52 | D6: 280344330 | F6: 0.7520517454
B7: Plastic packaging | C7: 180748735.2 | D7: 87829650 | F7: 0.327016822
B8: Glass packaging | C8: 154321079.3 | D8: 331064613.8 | F8: 0.6820650434
B9: Metal packaging | C9: 79077571.67 | D9: 1520000 | F9: 0.01885912899
B10: Beverage cartons | C10: 60591905.56 | D10: 2840000 | F10: 0.0447724213
B13: 2017 | C13: MSW | D13: Separate collection | F13: collection efficiency
B14: Netto inzamelefficientie
B15: Net comparison
B16: Paper & board packaging | C16: 82652514.63 | D16: 272196540 | F16: =D16/(C16+D16) -> 0.7670769767
B17: Plastic packaging | C17: 161631584.2 | D17: 14978700 | F17: =D17/($C$17+D17+D18+D19) -> 0.05045788913 | G17: =F17+F18+F19 -> 0.4555209361
B18: P in PMD | D18: 99166614.38 | F18: =D18/($C$17+D18+D17+D19) -> 0.3340568964
B19: P in PD | D19: 21078563.67 | F19: =D19/($C$17+D19+D17+D18) -> 0.07100615064
B20: Glass packaging | C20: 137999087.4 | D20: 335933211.1 | F20: =D20/(C20+D20) -> 0.7088210957
B21: Metal packaging | C21: 70713818.07 | D21: 794200 | F21: =D21/($C$21+D21+D22) -> 0.009416409781 | G21: =F21+F22 -> 0.161583621
B22: M in PMD | D22: 12834105.78 | F22: =D22/($C$21+D22+D21) -> 0.1521672113
B23: Beverage cartons | C23: 54183315.15 | D23: 603500 | F23: =D23/($C$23+D23+D24+D25) -> 0.007783552891 | G23: =F23+F24+F25 -> 0.3011786259
B24: BC in PMD | D24: 18441195.19 | F24: =D24/($C$23+D24+D23+D25) -> 0.2378426149
B25: PC in PD | D25: 4307275.735 | F25: =D25/($C$23+D25+D23+D24) -> 0.05555245816
B28: Nascheiden in 2017

Sheet Hulp voor invulblad (hidden)
A1: Ja
A2: Nee
A4: Omrin
A5: HVC
A6: Attero-Noord
A7: Attero-Wijster
A9: 0
A10: 1
